{"text_format":"1","workbook":"xlsx","n_sheets":4,"sheets":["Datos","INICIO","NEONATO_2012","Hoja1"],"not_rendered":{"charts":0,"images":20,"macros":1,"external_links":2,"defined_names":12,"comments":0,"pivot_tables":2},"unopened":[],"bounds":{"document_bytes":16777216,"sheet_cells":100000,"rows_first":2000,"rows_last":500,"rows_between":2000,"halvings":0,"cell_chars":16384,"cell_head_chars":4096},"cells_cut":0,"cells_raw":0,"read":"whole","date_system":"1900"}

{"sheet":"Datos","index":0,"n_rows":407,"n_cols":53,"rows_kept":407,"cut":false,"hidden":true,"merged":[]}
[]
[null,"Meses",null,"Años",null,null,"FON"]
[1,"Enero",null,2013,null,null,"FONP"]
[2,"Febrero",null,2016,null,null,"FONB"]
[3,"Marzo",null,2018,null,null,"FONE"]
[4,"Abril",null,2024,null,null,"FONI"]
[5,"Mayo"]
[6,"Junio"]
[7,"Julio"]
[8,"Agosto"]
[9,"Setiembre"]
[10,"Octubre"]
[11,"Noviembre"]
[12,"Diciembre"]
[null,null,null,null,null,null,null,null,null,null,null,null,"MICROREDES",null,null,"CODDISA","CODRED","MICRORED",null,"ESTABLECIMIENTOS"]
[null,"DISAS",null,null,null,"COD_DISA","COD_RED","DESC_RED","CODDISA","CODRED","RED",null,"COD_DISA","COD_MIC","COD_RED","DESC_MICRO","cod_micro","Columna1",null,"COD_ESTAB","DESC_ESTAB","COD_2000","TIPOESTAB","COD_DPTO","COD_PROV","COD_DIST","COD_DISA","COD_RED","COD_MIC","FED","cod_micro","DIST","DISARED",null,null,null,null,"cod_dpto","cod_prov","desc_prov","cod_provi","PROVINCIA",null,null,"COD_DPTO","COD_PROV","COD_DIST","CODIGO","DESC_DIST","LONG_POBLA","cod_provi","cod_distri","distrito"]
[11,"CUSCO","11-CUSCO",null,null,"11","11","(ALL)","11","06",{"$f":"CONCATENATE(G17,\"-\",H17)","v":"11-(ALL)"},null,"11","13","01","ACOMAYO","0000",{"$f":"CONCATENATE(N17,\"-\",P17)","v":"13-ACOMAYO"},null,"000002500","ACCHA",2500,"2","08","10","02","11","01","03","FED",{"$f":"CONCATENATE(AB17,AC17)","v":"0103"},1,"108",{"$f":"CONCATENATE(AE17,\"-\",U17)","v":"0103-ACCHA"},null,null,null,"00","00","(ALL)","0000","00-(ALL)",null,null,"08","01","01",{"$f":"CONCATENATE(AT17,AU17)","v":"0101"},"CUSCO",0,{"$f":"CONCATENATE(AS17,AT17)","v":"0801"},{"$f":"CONCATENATE(AS17,AT17,AU17)","v":"080101"},{"$f":"CONCATENATE(AV17,\"-\",AW17)","v":"0101-CUSCO"}]
[null,null,null,null,null,"11","00","HOSP REGIONAL","11","00","00-HOSP REGIONAL",null,"11","03","02","ANTA","0101","03-ANTA",null,"000010762","ACCHA ALTA - PAMPALLACTA",10762,"3","08","04","01","11","02","06","",{"$f":"CONCATENATE(AB18,AC18)","v":"0206"},6,"308",{"$f":"CONCATENATE(AE18,\"-\",U18)","v":"0206-ACCHA ALTA - PAMPALLACTA"},null,null,null,"08","01","CUSCO","0801","01-CUSCO",null,null,"08","01","02",{"$f":"CONCATENATE(AT18,AU18)","v":"0102"},"CCORCA",0,{"$f":"CONCATENATE(AS18,AT18)","v":"0801"},{"$f":"CONCATENATE(AS18,AT18,AU18)","v":"080102"},{"$f":"CONCATENATE(AV18,\"-\",AW18)","v":"0102-CCORCA"}]
[null,null,null,null,null,"11","01","CUSCO SUR","11","01","01-CUSCO SUR",null,"11","01","02","BELEMPAMPA","0102","01-BELEMPAMPA",null,"000002420","ACCOCUNCA",2420,"3","08","08","08","11","04","06","FED","0406",5,"208",{"$f":"CONCATENATE(AE19,\"-\",U19)","v":"0406-ACCOCUNCA"},null,null,null,"08","02","ACOMAYO","0802","02-ACOMAYO",null,null,"08","01","03","0103","POROY",0,"0801","080103","0103-POROY"]
[null,null,null,null,null,"11","02","CUSCO NORTE","11","02","02-CUSCO NORTE",null,"11","06","02","CALCA","0103","06-CALCA",null,"000002317","ACOMAYO",2317,"2","08","02","01","11","01","13","FED","0113",2,"208",{"$f":"CONCATENATE(AE20,\"-\",U20)","v":"0113-ACOMAYO"},null,null,null,"08","03","ANTA","0803","03-ANTA",null,null,"08","01","04","0104","SAN JERONIMO",0,"0801","080104","0104-SAN JERONIMO"]
[null,"Meses",null,null,null,"11","03","LA CONVENCION","11","03","03-LA CONVENCION",null,"11","03","04","COMBAPATA","0104","03-COMBAPATA",null,"000002318","ACOPIA",2318,"3","08","02","02","11","01","13","FED","0113",5,"308","0113-ACOPIA",null,null,null,"08","04","CALCA","0804","04-CALCA",null,null,"08","01","05","0105","SAN SEBASTIAN",0,"0801","080105","0105-SAN SEBASTIAN"]
[1,"Enero",null,null,null,"11","04","CANAS-CANCHIS-ESPINAR","11","04","04-CANAS-CANCHIS-ESPINAR",null,"11","16","01","CUSCO","0105","16-CUSCO",null,"000002319","ACOS",2319,"3","08","02","03","11","01","13","FED","0113",2,"208","0113-ACOS",null,null,null,"08","05","CANAS","0805","05-CANAS",null,null,"08","01","06","0106","SANTIAGO",0,"0801","080106","0106-SANTIAGO"]
[2,"Febrero",null,null,null,"11","05","QUIMBIRI","11","05","05-QUIMBIRI",null,"11","02","04","EL DESCANSO","0106","02-EL DESCANSO",null,"000008912","ALCCA VICTORIA",8912,"3","08","07","08","11","08","01","FED","0801",5,"208","0801-ALCCA VICTORIA",null,null,null,"08","06","CANCHIS","0806","06-CANCHIS",null,null,"08","01","07","0107","SAYLLA",0,"0801","080107","0107-SAYLLA"]
[3,"Marzo",null,null,null,"11","06","HOSP LORENA","11","06","06-HOSP LORENA",null,"11","00","06","HOSPITAL  LORENA","0107","00-HOSPITAL  LORENA",null,"000002454","ALFAMAYO",2454,"3","08","09","03","11","03","02","FED","0302",null,"308","0302-ALFAMAYO",null,null,null,"08","07","CHUMBIVILCAS","0807","07-CHUMBIVILCAS",null,null,"08","01","08","0108","WANCHAQ",0,"0801","080108","0108-WANCHAQ"]
[4,"Abril",null,null,null,"11","07","SICUANI","11","07","07-SICUANI",null,"11","01","10","HOSPITAL ESPINAR","0108","01-HOSPITAL ESPINAR",null,"000002400","ALHUACCHULLO",2400,"3","08","07","01","11","08","01","FED","0801",5,"308","0801-ALHUACCHULLO",null,null,null,"08","08","ESPINAR","0808","08-ESPINAR",null,null,"08","02","01","0201","ACOMAYO",0,"0802","080201","0201-ACOMAYO"]
[5,"Mayo",null,null,null,"11","08","CHUMBIVILCAS","11","08","08-CHUMBIVILCAS",null,"11","01","09","HOSPITAL QUILLABAMBA","0110","01-HOSPITAL QUILLABAMBA",null,"000002456","AMAYBAMBA",2456,"3","08","09","03","11","03","02","FED","0302",6,"308","0302-AMAYBAMBA",null,null,null,"08","09","LA CONVENCION","0809","09-LA CONVENCION",null,null,"08","02","02","0202","ACOPIA",0,"0802","080202","0202-ACOPIA"]
[6,"Junio",null,null,null,"11","09","QUILLABAMBA","11","09","09-QUILLABAMBA",null,"11","01","07","HOSPITAL SICUANI","0111","01-HOSPITAL SICUANI",null,"000002342","AMPARAES",2342,"3","08","04","04","11","02","06","FED","0206",6,"308","0206-AMPARAES",null,null,null,"08","10","PARURO","0810","10-PARURO",null,null,"08","02","03","0203","ACOS",0,"0802","080203","0203-ACOS"]
[7,"Julio",null,null,null,"11","10","ESPINAR","11","10","10-ESPINAR",null,"11","05","03","KAMISEA","0112","05-KAMISEA",null,"000002330","ANCAHUASI",2330,"2","08","03","02","11","02","03","FED","0203",1,"208","0203-ANCAHUASI",null,null,null,"08","11","PAUCARTAMBO","0811","11-PAUCARTAMBO",null,null,"08","02","04","0204","MOSOC LLACTA",0,"0802","080204","0204-MOSOC LLACTA"]
[8,"Agosto",1,2,null,null,null,null,null,null,null,null,"11","01","05","KIMBIRI","0113","01-KIMBIRI",null,"000002525","ANDAHUAYLILLAS",2525,"3","08","12","02","11","01","12","FED","0112",7,"208","0112-ANDAHUAYLILLAS",null,null,null,"08","12","QUISPICANCHI","0812","12-QUISPICANCHI",null,null,"08","02","05","0205","POMACANCHI",0,"0802","080205","0205-POMACANCHI"]
[9,"Setiembre",null,null,null,null,null,null,null,null,null,null,"11","04","03","KITENI","0114","04-KITENI",null,"000008285","ANGELES",8285,"3","08","09","07","11","05","01","FED","0501",1,"308","0501-ANGELES",null,null,null,"08","13","URUBAMBA","0813","13-URUBAMBA",null,null,"08","02","06","0206","RONDOCAN",0,"0802","080206","0206-RONDOCAN"]
[10,"Octubre","01-CUSCO SUR",null,null,null,null,null,null,null,null,null,"11","04","02","LIMATAMBO","0115","04-LIMATAMBO",null,"000002326","ANTA",2326,"2","08","03","01","11","02","03","FED","0203",null,"208","0203-ANTA",null,null,null,null,null,null,null,null,null,null,"08","02","07","0207","SANGARARA",0,"0802","080207","0207-SANGARARA"]
[11,"Noviembre","06-(ALL)",null,null,null,null,null,null,null,null,null,"11","02","08","LIVITACA","0201","02-LIVITACA",null,"000002506","ANTAPALLPA",2506,"3","08","10","06","11","01","03","FED","0103",8,"208","0103-ANTAPALLPA",null,null,null,null,null,null,null,null,null,null,"08","03","01","0301","ANTA",0,"0803","080301","0301-ANTA"]
[12,"Diciembre",null,null,null,null,null,null,null,null,null,null,"11","02","03","MARANURA","0202","02-MARANURA",null,"000002305","ANTONIO LORENA DEL CUSCO",2305,"1","08","01","06","11","06","00","","0600",2,"108","0600-ANTONIO LORENA DEL CUSCO",null,null,null,null,null,null,null,null,null,null,"08","03","02","0302","ANCAHUASI",0,"0803","080302","0302-ANCAHUASI"]
[13,"1er. Trimestre",null,null,null,null,null,null,null,null,null,null,"11","00","00","NO PERTENECE A NINGUNA MICRORED","0203","00-NO PERTENECE A NINGUNA MICRORED",null,"000002403","AÑAHUICHI",2403,"3","08","07","03","11","08","02","FED","0802",3,"208","0802-AÑAHUICHI",null,null,null,null,null,null,null,null,null,null,"08","03","03","0303","CACHIMAYO",0,"0803","080303","0303-CACHIMAYO"]
[14,"2do. Trimestre",null,null,null,null,null,null,null,null,null,null,"11","15","01","OCONGATE","0204","15-OCONGATE",null,"000002490","ARMA",2490,"3","08","09","09","11","03","06","","0306",null,"208","0306-ARMA",null,null,null,null,null,null,null,null,null,null,"08","03","04","0304","CHINCHAYPUJIO",0,"0803","080304","0304-CHINCHAYPUJIO"]
[15,"3er. Trimestre",null,null,null,null,null,null,null,null,null,null,"11","05","04","PAMPAPHALLA","0205","05-PAMPAPHALLA",null,"000016327","AUSANTA",16327,"3","08","07","05","11","08","02","FED","0802",9,"208","0802-AUSANTA",null,null,null,null,null,null,null,null,null,null,"08","03","05","0305","HUAROCONDO",0,"0803","080305","0305-HUAROCONDO"]
[16,"4to. Trimestre",null,null,null,null,null,null,null,null,null,null,"11","03","01","PARURO","0206","03-PARURO",null,"000002519","AYRE",2519,"3","08","11","04","11","01","06","FED","0106",1,"208","0106-AYRE",null,null,null,null,null,null,null,null,null,null,"08","03","06","0306","LIMATAMBO",0,"0803","080306","0306-LIMATAMBO"]
[17,"1er. Semestre",null,null,null,null,null,null,null,null,null,null,"11","06","01","PAUCARTAMBO","0207","06-PAUCARTAMBO",null,"000002306","BELEMPAMPA",2306,"2","08","01","06","11","02","01","","0201",2,"208","0201-BELEMPAMPA",null,null,null,null,null,null,null,null,null,null,"08","03","07","0307","MOLLEPATA",0,"0803","080307","0307-MOLLEPATA"]
[18,"2do. Semestre",null,null,null,null,null,null,null,null,null,null,"11","02","05","PICHARI","0208","02-PICHARI",null,"000006973","BELLAVISTA",6973,"3","08","04","08","11","02","08","","0208",3,"308","0208-BELLAVISTA",null,null,null,null,null,null,null,null,null,null,"08","03","08","0308","PUCYURA",0,"0803","080308","0308-PUCYURA"]
[19,"Anual",null,null,null,null,null,null,null,null,null,null,"11","05","02","PISAC","0209","05-PISAC",null,"000002295","BUENA VISTA",2295,"2","08","01","01","11","02","09","","0209",4,"308","0209-BUENA VISTA",null,null,null,null,null,null,null,null,null,null,"08","03","09","0309","ZURITE",0,"0803","080309","0309-ZURITE"]
[null,null,null,null,null,null,null,null,null,null,null,null,"11","06","03","PUCYURA","0301","06-PUCYURA",null,"000002331","CACHIMAYO",2331,"3","08","03","03","11","02","03","","0203",4,"308","0203-CACHIMAYO",null,null,null,null,null,null,null,null,null,null,"08","04","01","0401","CALCA",0,"0804","080401","0401-CALCA"]
[null,null,null,null,null,null,null,null,null,null,null,null,"11","03","03","QUELLOUNO","0302","03-QUELLOUNO",null,"000002512","CAICAY",2512,"3","08","11","02","11","01","06","FED","0106",4,"308","0106-CAICAY",null,null,null,null,null,null,null,null,null,null,"08","04","02","0402","COYA",0,"0804","080402","0402-COYA"]
[null,null,null,null,null,null,null,null,null,null,null,null,"11","00","05","SAN JUAN DE KIMBIRI","0303","00-SAN JUAN DE KIMBIRI",null,"000002341","CALCA",2341,"2","08","04","01","11","02","06","","0206",6,"208","0206-CALCA",null,null,null,null,null,null,null,null,null,null,"08","04","03","0403","LAMAY",0,"0804","080403","0403-LAMAY"]
[null,null,null,null,null,null,null,null,null,null,null,null,"11","01","03","SANTA ANA","0304","01-SANTA ANA",null,"000015844","CAMANA",15844,"3","08","09","14","11","03","05","","0305",2,"208","0305-CAMANA",null,null,null,null,null,null,null,null,null,null,"08","04","04","0404","LARES",0,"0804","080404","0404-LARES"]
[null,null,null,null,null,null,null,null,null,null,null,null,"11","01","08","SANTO TOMAS","0305","01-SANTO TOMAS",null,"000006974","CAMINO INCA HUAYLLABAMBA",6974,"3","08","13","04","11","02","07","","0207",4,"208","0207-CAMINO INCA HUAYLLABAMBA",null,null,null,null,null,null,null,null,null,null,"08","04","05","0405","PISAC",0,"0804","080405","0405-PISAC"]
[null,null,null,null,null,null,null,null,null,null,null,null,"11","09","02","SIETE CUARTONES","0306","09-SIETE CUARTONES",null,"000009963","CANCAHUANI",9963,"3","08","07","02","11","08","01","FED","0801",5,"308","0801-CANCAHUANI",null,null,null,null,null,null,null,null,null,null,"08","04","06","0406","SAN SALVADOR",0,"0804","080406","0406-SAN SALVADOR"]
[null,null,null,null,null,null,null,null,null,null,null,null,"11","04","04","TECHO OBRERO","0307","04-TECHO OBRERO",null,"000002527","CARHUAYO",2527,"3","08","12","04","11","01","15","FED","0115",6,"308","0115-CARHUAYO",null,null,null,null,null,null,null,null,null,null,"08","04","07","0407","TARAY",0,"0804","080407","0407-TARAY"]
[null,null,null,null,null,null,null,null,null,null,null,null,"11","12","01","URCOS","0401","12-URCOS",null,"000010060","CAS URUBAMBA - ESSALUD",10060,"1","08","13","01","11","02","07","","0207",6,"308","0207-CAS URUBAMBA - ESSALUD",null,null,null,null,null,null,null,null,null,null,"08","04","08","0408","YANATILE",0,"0804","080408","0408-YANATILE"]
[null,null,null,null,null,null,null,null,null,null,null,null,"11","07","02","URUBAMBA","0402","07-URUBAMBA",null,"000015843","CASHIRIARI",15843,"3","08","09","14","11","03","05","","0305",1,"208","0305-CASHIRIARI",null,null,null,null,null,null,null,null,null,null,"08","05","01","0501","YANAOCA",0,"0805","080501","0501-YANAOCA"]
[null,null,null,null,null,null,null,null,null,null,null,null,"11","02","02","WANCHAQ","0403","02-WANCHAQ",null,"000002345","CCACHIN",2345,"3","08","04","04","11","02","06","FED","0206",3,"308","0206-CCACHIN",null,null,null,null,null,null,null,null,null,null,"08","05","02","0502","CHECCA",0,"0805","080502","0502-CHECCA"]
[null,null,null,null,null,null,null,null,null,null,null,null,"11","01","04","YANAOCA","0404","01-YANAOCA",null,"000002401","CCAPACMARCA",2401,"2","08","07","02","11","08","01","FED","0801",5,"208","0801-CCAPACMARCA",null,null,null,null,null,null,null,null,null,null,"08","05","03","0503","KUNTURKANKI",0,"0805","080503","0503-KUNTURKANKI"]
[null,null,null,null,null,null,null,null,null,null,null,null,"11","08","02","YANATILE","0405","08-YANATILE",null,"000016335","CCAPANA",16335,"3","08","12","05","11","01","15","FED","0115",null,"308","0115-CCAPANA",null,null,null,null,null,null,null,null,null,null,"08","05","04","0504","LANGUI",0,"0805","080504","0504-LANGUI"]
[null,null,null,null,null,null,null,null,null,null,null,null,"11","06","04","YAURI","0406","06-YAURI",null,"000002501","CCAPI",2501,"3","08","10","03","11","01","03","FED","0103",4,"308","0103-CCAPI",null,null,null,null,null,null,null,null,null,null,"08","05","05","0505","LAYO",0,"0805","080505","0505-LAYO"]
[null,null,null,null,null,null,null,null,null,null,null,null,"11","01","01","(ALL)","0101","01-(ALL)",null,"000002481","CCARCCO",2481,"3","08","09","11","11","03","06","","0306",5,"208","0306-CCARCCO",null,null,null,null,null,null,null,null,null,null,"08","05","06","0506","PAMPAMARCA",0,"0805","080506","0506-PAMPAMARCA"]
[null,null,null,null,null,null,null,null,null,null,null,null,"11","02","02","(ALL)","0202","02-(ALL)",null,"000002528","CCATCCA",2528,"2","08","12","05","11","01","15","FED","0115",3,"308","0115-CCATCCA",null,null,null,null,null,null,null,null,null,null,"08","05","07","0507","QUEHUE",0,"0805","080507","0507-QUEHUE"]
[null,null,null,null,null,null,null,null,null,null,null,null,"11","03","03","(ALL)","0303","03-(ALL)",null,"000006978","CCOCHIRIHUAY",6978,"3","08","10","04","11","01","03","FED","0103",3,"308","0103-CCOCHIRIHUAY",null,null,null,null,null,null,null,null,null,null,"08","05","08","0508","TUPAC AMARU",0,"0805","080508","0508-TUPAC AMARU"]
[null,null,null,null,null,null,null,null,null,null,null,null,"11","04","04","(ALL)","0404","04-(ALL)",null,"000006984","CCOLLANA",6984,"3","08","07","07","11","08","01","FED","0801",null,"308","0801-CCOLLANA",null,null,null,null,null,null,null,null,null,null,"08","06","01","0601","SICUANI",0,"0806","080601","0601-SICUANI"]
[null,null,null,null,null,null,null,null,null,null,null,null,"11","05","05","(ALL)","0505","05-(ALL)",null,"000016330","CCONCHACCOLLO",16330,"3","08","07","03","11","08","02","FED","0802",null,"208","0802-CCONCHACCOLLO",null,null,null,null,null,null,null,null,null,null,"08","06","02","0602","CHECACUPE",0,"0806","080602","0602-CHECACUPE"]
[null,null,null,null,null,null,null,null,null,null,null,null,"11","06","06","(ALL)","0606","06-(ALL)",null,"000002302","CCORAO",2302,"3","08","01","05","11","02","02","","0202",null,"308","0202-CCORAO",null,null,null,null,null,null,null,null,null,null,"08","06","03","0603","COMBAPATA",0,"0806","080603","0603-COMBAPATA"]
[null,null,null,null,null,null,null,null,null,null,null,null,"11","07","07","(ALL)","0707","07-(ALL)",null,"000002297","CCORCCA",2297,"3","08","01","02","11","02","01","FED","0201",null,"208","0201-CCORCCA",null,null,null,null,null,null,null,null,null,null,"08","06","04","0604","MARANGANI",0,"0806","080604","0604-MARANGANI"]
[null,null,null,null,null,null,null,null,null,null,null,null,null,null,null,null,null,null,null,"000002356","CCORIMAYO",2356,"3","08","04","08","11","02","08","","0208",null,"308","0208-CCORIMAYO",null,null,null,null,null,null,null,null,null,null,"08","06","05","0605","PITUMARCA",0,"0806","080605","0605-PITUMARCA"]
[null,null,null,null,null,null,null,null,null,null,null,null,null,null,null,null,null,null,null,"000002502","CCOYABAMBA",2502,"3","08","10","03","11","01","03","FED","0103",null,"308","0103-CCOYABAMBA",null,null,null,null,null,null,null,null,null,null,"08","06","06","0606","SAN PABLO",0,"0806","080606","0606-SAN PABLO"]
[null,null,null,null,null,null,null,null,null,null,null,null,null,null,null,null,null,null,null,"000006981","CCOYO",6981,"3","08","07","01","11","08","01","FED","0801",null,"308","0801-CCOYO",null,null,null,null,null,null,null,null,null,null,"08","06","07","0607","SAN PEDRO",0,"0806","080607","0607-SAN PEDRO"]
[null,null,null,null,null,null,null,null,null,null,null,null,null,null,null,null,null,null,null,"000002390","CCUYO",2390,"3","08","06","04","11","04","04","FED","0404",null,"208","0404-CCUYO",null,null,null,null,null,null,null,null,null,null,"08","06","08","0608","TINTA",0,"0806","080608","0608-TINTA"]
[null,null,null,null,null,null,null,null,null,null,null,null,null,null,null,null,null,null,null,"000014531","CENTRO DE ATENCIÓN PRIMARIA I ECHARATE - KITENI",14531,"3","08","09","02","11","03","04","","0304",null,"308","0304-CENTRO DE ATENCIÓN PRIMARIA I ECHARATE - KITENI",null,null,null,null,null,null,null,null,null,null,"08","07","01","0701","SANTO TOMAS",0,"0807","080701","0701-SANTO TOMAS"]
[null,null,null,null,null,null,null,null,null,null,null,null,null,null,null,null,null,null,null,"000010067","CENTRO MEDICO SANTIAGO ESSALUD",10067,"2","08","01","06","11","02","01","","0201",null,"208","0201-CENTRO MEDICO SANTIAGO ESSALUD",null,null,null,null,null,null,null,null,null,null,"08","07","02","0702","CAPACMARCA",0,"0807","080702","0702-CAPACMARCA"]
[null,null,null,null,null,null,null,null,null,null,null,null,null,null,null,null,null,null,null,"000002327","CHACAN",2327,"3","08","03","01","11","02","03","FED","0203",null,"208","0203-CHACAN",null,null,null,null,null,null,null,null,null,null,"08","07","03","0703","CHAMACA",0,"0807","080703","0703-CHAMACA"]
[null,null,null,null,null,null,null,null,null,null,null,null,null,null,null,null,null,null,null,"000002446","CHACCO",2446,"3","08","09","02","11","03","01","","0301",null,"308","0301-CHACCO",null,null,null,null,null,null,null,null,null,null,"08","07","04","0704","COLQUEMARCA",0,"0807","080704","0704-COLQUEMARCA"]
[null,null,null,null,null,null,null,null,null,null,null,null,null,null,null,null,null,null,null,"000002451","CHAHUARES",2451,"3","08","09","02","11","03","01","","0301",4,"208","0301-CHAHUARES",null,null,null,null,null,null,null,null,null,null,"08","07","05","0705","LIVITACA",0,"0807","080705","0705-LIVITACA"]
[null,null,null,null,null,null,null,null,null,null,null,null,null,null,null,null,null,null,null,"000002514","CHALLABAMBA",2514,"2","08","11","03","11","01","06","FED","0106",4,"308","0106-CHALLABAMBA",null,null,null,null,null,null,null,null,null,null,"08","07","06","0706","LLUSCO",0,"0807","080706","0706-LLUSCO"]
[null,null,null,null,null,null,null,null,null,null,null,null,null,null,null,null,null,null,null,"000002402","CHAMACA",2402,"3","08","07","03","11","08","02","FED","0802",null,"308","0802-CHAMACA",null,null,null,null,null,null,null,null,null,null,"08","07","07","0707","QUIÑOTA",0,"0807","080707","0707-QUIÑOTA"]
[null,null,null,null,null,null,null,null,null,null,null,null,null,null,null,null,null,null,null,"000007142","CHANCAMAYO",7142,"3","08","04","08","11","02","08","","0208",6,"208","0208-CHANCAMAYO",null,null,null,null,null,null,null,null,null,null,"08","07","08","0708","VELILLE",0,"0807","080708","0708-VELILLE"]
[null,null,null,null,null,null,null,null,null,null,null,null,null,null,null,null,null,null,null,"000013070","CHANCAVINE",13070,"3","08","09","12","11","03","06","","0306",1,"308","0306-CHANCAVINE",null,null,null,null,null,null,null,null,null,null,"08","08","01","0801","ESPINAR",0,"0808","080801","0801-ESPINAR"]
[null,null,null,null,null,null,null,null,null,null,null,null,null,null,null,null,null,null,null,"000008909","CHAPO BOYERO",8909,"3","08","09","06","11","03","03","","0303",2,"308","0303-CHAPO BOYERO",null,null,null,null,null,null,null,null,null,null,"08","08","02","0802","CONDOROMA",0,"0808","080802","0802-CONDOROMA"]
[null,null,null,null,null,null,null,null,null,null,null,null,null,null,null,null,null,null,null,"000002405","CHARAMURAY",2405,"3","08","07","04","11","08","01","FED","0801",null,"208","0801-CHARAMURAY",null,null,null,null,null,null,null,null,null,null,"08","08","03","0803","COPORAQUE",0,"0808","080803","0803-COPORAQUE"]
[null,null,null,null,null,null,null,null,null,null,null,null,null,null,null,null,null,null,null,"000002385","CHECACUPE",2385,"3","08","06","02","11","04","03","FED","0403",7,"208","0403-CHECACUPE",null,null,null,null,null,null,null,null,null,null,"08","08","04","0804","OCORURO",0,"0808","080804","0804-OCORURO"]
[null,null,null,null,null,null,null,null,null,null,null,null,null,null,null,null,null,null,null,"000002366","CHECCA",2366,"3","08","05","02","11","04","02","FED","0402",7,"308","0402-CHECCA",null,null,null,null,null,null,null,null,null,null,"08","08","05","0805","PALLPATA",0,"0808","080805","0805-PALLPATA"]
[null,null,null,null,null,null,null,null,null,null,null,null,null,null,null,null,null,null,null,"000002389","CHECTUYOC",2389,"3","08","06","04","11","04","04","FED","0404",8,"308","0404-CHECTUYOC",null,null,null,null,null,null,null,null,null,null,"08","08","06","0806","PICHIGUA",0,"0808","080806","0806-PICHIGUA"]
[null,null,null,null,null,null,null,null,null,null,null,null,null,null,null,null,null,null,null,"000002387","CHIARA",2387,"3","08","06","03","11","04","03","FED","0403",11,"308","0403-CHIARA",null,null,null,null,null,null,null,null,null,null,"08","08","07","0807","SUYCKUTAMBO",0,"0808","080807","0807-SUYCKUTAMBO"]
[null,null,null,null,null,null,null,null,null,null,null,null,null,null,null,null,null,null,null,"000012931","CHICHINA",12931,"3","08","12","05","11","01","15","FED","0115",12,"208","0115-CHICHINA",null,null,null,null,null,null,null,null,null,null,"08","08","08","0808","ALTO PICHIGUA",0,"0808","080808","0808-ALTO PICHIGUA"]
[null,null,null,null,null,null,null,null,null,null,null,null,null,null,null,null,null,null,null,"000002550","CHILLCA",2550,"3","08","13","06","11","02","07","FED","0207",12,"308","0207-CHILLCA",null,null,null,null,null,null,null,null,null,null,"08","09","01","0901","SANTA ANA",0,"0809","080901","0901-SANTA ANA"]
[null,null,null,null,null,null,null,null,null,null,null,null,null,null,null,null,null,null,null,"000006980","CHILLIHUANI",6980,"3","08","12","06","11","01","12","FED",{"$f":"CONCATENATE(AB82,AC82)","v":"0112"},1,"308","0112-CHILLIHUANI",null,null,null,null,null,null,null,null,null,null,"08","09","02",{"$f":"CONCATENATE(AT82,AU82)","v":"0902"},"ECHARATE",0,{"$f":"CONCATENATE(AS82,AT82)","v":"0809"},{"$f":"CONCATENATE(AS82,AT82,AU82)","v":"080902"},{"$f":"CONCATENATE(AV82,\"-\",AW82)","v":"0902-ECHARATE"}]
[null,null,null,null,null,null,null,null,null,null,null,null,null,null,null,null,null,null,null,"000016325","CHILLOROYA - LIVITACA",16325,"3","08","07","05","11","08","02","FED","0802",2,"208","0802-CHILLOROYA - LIVITACA",null,null,null,null,null,null,null,null,null,null,"08","09","03","0903","HUAYOPATA",0,"0809","080903","0903-HUAYOPATA"]
[null,null,null,null,null,null,null,null,null,null,null,null,null,null,null,null,null,null,null,"000002332","CHINCHAYPUJIO",2332,"2","08","03","04","11","02","03","FED","0203",6,"308",{"$f":"CONCATENATE(AE84,\"-\",U84)","v":"0203-CHINCHAYPUJIO"},null,null,null,null,null,null,null,null,null,null,"08","09","04","0904","MARANURA",0,"0809","080904","0904-MARANURA"]
[null,null,null,null,null,null,null,null,null,null,null,null,null,null,null,null,null,null,null,"000002543","CHINCHERO",2543,"2","08","13","02","11","02","07","","0207",6,"308","0207-CHINCHERO",null,null,null,null,null,null,null,null,null,null,"08","09","05","0905","OCOBAMBA",0,"0809","080905","0905-OCOBAMBA"]
[null,null,null,null,null,null,null,null,null,null,null,null,null,null,null,null,null,null,null,"000002463","CHINGANILLA",2463,"3","08","09","05","11","03","03","","0303",null,"308","0303-CHINGANILLA",null,null,null,null,null,null,null,null,null,null,"08","09","06","0906","QUELLOUNO",0,"0809","080906","0906-QUELLOUNO"]
[null,null,null,null,null,null,null,null,null,null,null,null,null,null,null,null,null,null,null,"000008908","CHIRUMBIA",8908,"3","08","09","06","11","03","03","","0303",null,"208","0303-CHIRUMBIA",null,null,null,null,null,null,null,null,null,null,"08","09","07","0907","KIMBIRI",0,"0809","080907","0907-KIMBIRI"]
[null,null,null,null,null,null,null,null,null,null,null,null,null,null,null,null,null,null,null,"000002470","CHIRUMPIARI",2470,"3","08","09","07","11","05","01","FED","0501",5,"308","0501-CHIRUMPIARI",null,null,null,null,null,null,null,null,null,null,"08","09","08","0908","SANTA TERESA",0,"0809","080908","0908-SANTA TERESA"]
[null,null,null,null,null,null,null,null,null,null,null,null,null,null,null,null,null,null,null,"000002367","CHITIBAMBA",2367,"3","08","05","02","11","04","01","FED","0401",6,"308","0401-CHITIBAMBA",null,null,null,null,null,null,null,null,null,null,"08","09","09","0909","VILCABAMBA",0,"0809","080909","0909-VILCABAMBA"]
[null,null,null,null,null,null,null,null,null,null,null,null,null,null,null,null,null,null,null,"000002310","CHOCCO",2310,"2","08","01","06","11","02","02","","0202",4,"308","0202-CHOCCO",null,null,null,null,null,null,null,null,null,null,"08","09","10","0910","PICHARI",0,"0809","080910","0910-PICHARI"]
[null,null,null,null,null,null,null,null,null,null,null,null,null,null,null,null,null,null,null,"000002428","CHOCORIARI",2428,"3","08","09","14","11","03","05","","0305",5,"308","0305-CHOCORIARI",null,null,null,null,null,null,null,null,null,null,"08","09","14","0914","MEGANTONI",0,"0809","080914","0914-MEGANTONI"]
[null,null,null,null,null,null,null,null,null,null,null,null,null,null,null,null,null,null,null,"000006976","CHONTABAMBA",6976,"3","08","09","09","11","03","04","","0304",7,"208","0304-CHONTABAMBA",null,null,null,null,null,null,null,null,null,null,"08","09","11",{"$f":"CONCATENATE(AT92,AU92)","v":"0911"},"INKAWASI",0,{"$f":"CONCATENATE(AS92,AT92)","v":"0809"},{"$f":"CONCATENATE(AS92,AT92,AU92)","v":"080911"},{"$f":"CONCATENATE(AV92,\"-\",AW92)","v":"0911-INKAWASI"}]
[null,null,null,null,null,null,null,null,null,null,null,null,null,null,null,null,null,null,null,"000002346","CHOQUECANCHA",2346,"3","08","04","04","11","02","06","FED","0206",1,"308","0206-CHOQUECANCHA",null,null,null,null,null,null,null,null,null,null,"08","09","12",{"$f":"CONCATENATE(AT93,AU93)","v":"0912"},"VILLA VIRGEN",0,{"$f":"CONCATENATE(AS93,AT93)","v":"0809"},{"$f":"CONCATENATE(AS93,AT93,AU93)","v":"080912"},{"$f":"CONCATENATE(AV93,\"-\",AW93)","v":"0912-VILLA VIRGEN"}]
[null,null,null,null,null,null,null,null,null,null,null,null,null,null,null,null,null,null,null,"000002487","CHOQUETIRA",2487,"3","08","09","11","11","03","06","","0306",1,"308","0306-CHOQUETIRA",null,null,null,null,null,null,null,null,null,null,"08","09","13",{"$f":"CONCATENATE(AT94,AU94)","v":"0913"},"VILLA QUINTIARINA",0,{"$f":"CONCATENATE(AS94,AT94)","v":"0809"},{"$f":"CONCATENATE(AS94,AT94,AU94)","v":"080913"},{"$f":"CONCATENATE(AV94,\"-\",AW94)","v":"0913-VILLA QUINTIARINA"}]
[null,null,null,null,null,null,null,null,null,null,null,null,null,null,null,null,null,null,null,"000002429","CIRIALO",2429,"3","08","09","02","11","03","01","","0301",1,"308","0301-CIRIALO",null,null,null,null,null,null,null,null,null,null,"08","10","01","1001","PARURO",0,"0810","081001","1001-PARURO"]
[null,null,null,null,null,null,null,null,null,null,null,null,null,null,null,null,null,null,null,"000002539","COLCA QUIQUIJANA",2539,"3","08","12","12","11","01","12","FED","0112",9,"308","0112-COLCA QUIQUIJANA",null,null,null,null,null,null,null,null,null,null,"08","10","02","1002","ACCHA",0,"0810","081002","1002-ACCHA"]
[null,null,null,null,null,null,null,null,null,null,null,null,null,null,null,null,null,null,null,"000002357","COLCCA YANATILE",2357,"3","08","04","08","11","02","08","","0208",10,"308","0208-COLCCA YANATILE",null,null,null,null,null,null,null,null,null,null,"08","10","03","1003","CCAPI",0,"0810","081003","1003-CCAPI"]
[null,null,null,null,null,null,null,null,null,null,null,null,null,null,null,null,null,null,null,"000002503","COLCHA",2503,"3","08","10","04","11","01","03","FED","0103",3,"308","0103-COLCHA",null,null,null,null,null,null,null,null,null,null,"08","10","04","1004","COLCHA",0,"0810","081004","1004-COLCHA"]
[null,null,null,null,null,null,null,null,null,null,null,null,null,null,null,null,null,null,null,"000006748","COLLPA",6748,"3","08","07","06","11","08","01","FED","0801",4,"208","0801-COLLPA",null,null,null,null,null,null,null,null,null,null,"08","10","05","1005","HUANOQUITE",0,"0810","081005","1005-HUANOQUITE"]
[null,null,null,null,null,null,null,null,null,null,null,null,null,null,null,null,null,null,null,"000002547","COLLPANI",2547,"3","08","13","04","11","02","07","","0207",null,"308","0207-COLLPANI",null,null,null,null,null,null,null,null,null,null,"08","10","06","1006","OMACHA",0,"0810","081006","1006-OMACHA"]
[null,null,null,null,null,null,null,null,null,null,null,null,null,null,null,null,null,null,null,"000002404","COLQUEMARCA",2404,"2","08","07","04","11","08","01","FED","0801",null,"308","0801-COLQUEMARCA",null,null,null,null,null,null,null,null,null,null,"08","10","07","1007","PACCARITAMBO",0,"0810","081007","1007-PACCARITAMBO"]
[null,null,null,null,null,null,null,null,null,null,null,null,null,null,null,null,null,null,null,"000002516","COLQUEPATA",2516,"3","08","11","04","11","01","06","FED","0106",1,"308","0106-COLQUEPATA",null,null,null,null,null,null,null,null,null,null,"08","10","08","1008","PILLPINTO",0,"0810","081008","1008-PILLPINTO"]
[null,null,null,null,null,null,null,null,null,null,null,null,null,null,null,null,null,null,null,"000002386","COMBAPATA CANCHIS",2386,"2","08","06","03","11","04","03","FED","0403",3,"308","0403-COMBAPATA CANCHIS",null,null,null,null,null,null,null,null,null,null,"08","10","09","1009","YAURISQUE",0,"0810","081009","1009-YAURISQUE"]
[null,null,null,null,null,null,null,null,null,null,null,null,null,null,null,null,null,null,null,"000006971","COMBAPATA YANATILE",6971,"3","08","04","08","11","02","08","","0208",6,"308","0208-COMBAPATA YANATILE",null,null,null,null,null,null,null,null,null,null,"08","11","01","1101","PAUCARTAMBO",0,"0811","081101","1101-PAUCARTAMBO"]
[null,null,null,null,null,null,null,null,null,null,null,null,null,null,null,null,null,null,null,"000002328","COMPONE",2328,"3","08","03","01","11","02","03","FED","0203",6,"308","0203-COMPONE",null,null,null,null,null,null,null,null,null,null,"08","11","02","1102","CAICAY",0,"0811","081102","1102-CAICAY"]
[null,null,null,null,null,null,null,null,null,null,null,null,null,null,null,null,null,null,null,"000002329","CONCHACALLA",2329,"3","08","03","01","11","02","03","FED","0203",6,"108","0203-CONCHACALLA",null,null,null,null,null,null,null,null,null,null,"08","11","03","1103","CHALLABAMBA",0,"0811","081103","1103-CHALLABAMBA"]
[null,null,null,null,null,null,null,null,null,null,null,null,null,null,null,null,null,null,null,"000007699","CONCHACALLE",7699,"3","08","01","04","11","01","16","","0116",1,"308","0116-CONCHACALLE",null,null,null,null,null,null,null,null,null,null,"08","11","04","1104","COLQUEPATA",0,"0811","081104","1104-COLQUEPATA"]
[null,null,null,null,null,null,null,null,null,null,null,null,null,null,null,null,null,null,null,"000002370","CONDEVILUYO",2370,"3","08","05","04","11","04","02","FED","0402",5,"208","0402-CONDEVILUYO",null,null,null,null,null,null,null,null,null,null,"08","11","05","1105","HUANCARANI",0,"0811","081105","1105-HUANCARANI"]
[null,null,null,null,null,null,null,null,null,null,null,null,null,null,null,null,null,null,null,"000002411","CONDOROMA",2411,"3","08","08","02","11","04","06","FED","0406",6,"308","0406-CONDOROMA",null,null,null,null,null,null,null,null,null,null,"08","11","06","1106","KOSÑIPATA",0,"0811","081106","1106-KOSÑIPATA"]
[null,null,null,null,null,null,null,null,null,null,null,null,null,null,null,null,null,null,null,"000002412","COPORAQUE",2412,"3","08","08","03","11","04","06","FED","0406",7,"308","0406-COPORAQUE",null,null,null,null,null,null,null,null,null,null,"08","12","01","1201","URCOS",0,"0812","081201","1201-URCOS"]
[null,null,null,null,null,null,null,null,null,null,null,null,null,null,null,null,null,null,null,"000002343","COYA",2343,"3","08","04","02","11","02","05","FED","0205",3,"308","0205-COYA",null,null,null,null,null,null,null,null,null,null,"08","12","02","1202","ANDAHUAYLILLAS",0,"0812","081202","1202-ANDAHUAYLILLAS"]
[null,null,null,null,null,null,null,null,null,null,null,null,null,null,null,null,null,null,null,"000010758","CRUZPATA",10758,"3","08","13","05","11","02","07","","0207",4,"208","0207-CRUZPATA",null,null,null,null,null,null,null,null,null,null,"08","12","03","1203","CAMANTI",0,"0812","081203","1203-CAMANTI"]
[null,null,null,null,null,null,null,null,null,null,null,null,null,null,null,null,null,null,null,"000002530","CUSIPATA",2530,"2","08","12","06","11","01","12","FED","0112",2,"308","0112-CUSIPATA",null,null,null,null,null,null,null,null,null,null,"08","12","04","1204","CCARHUAYO",0,"0812","081204","1204-CCARHUAYO"]
[null,null,null,null,null,null,null,null,null,null,null,null,null,null,null,null,null,null,null,"000002349","CUYO CHICO",2349,"3","08","04","05","11","02","05","FED","0205",3,"208","0205-CUYO CHICO",null,null,null,null,null,null,null,null,null,null,"08","12","05","1205","CCATCA",0,"0812","081205","1205-CCATCA"]
[null,null,null,null,null,null,null,null,null,null,null,null,null,null,null,null,null,null,null,"000002350","CUYO GRANDE",2350,"3","08","04","05","11","02","05","FED","0205",4,"308","0205-CUYO GRANDE",null,null,null,null,null,null,null,null,null,null,"08","12","06","1206","CUSIPATA",0,"0812","081206","1206-CUSIPATA"]
[null,null,null,null,null,null,null,null,null,null,null,null,null,null,null,null,null,null,null,"000002309","DIGNIDAD NACIONAL",2309,"2","08","01","06","11","02","01","","0201",5,"208","0201-DIGNIDAD NACIONAL",null,null,null,null,null,null,null,null,null,null,"08","12","07","1207","HUARO",0,"0812","081207","1207-HUARO"]
[null,null,null,null,null,null,null,null,null,null,null,null,null,null,null,null,null,null,null,"000002425","ECHARATE",2425,"3","08","09","02","11","03","01","","0301",5,"308","0301-ECHARATE",null,null,null,null,null,null,null,null,null,null,"08","12","08","1208","LUCRE",0,"0812","081208","1208-LUCRE"]
[null,null,null,null,null,null,null,null,null,null,null,null,null,null,null,null,null,null,null,"000007700","EL DESCANSO",7700,"2","08","05","03","11","04","02","FED","0402",6,"308","0402-EL DESCANSO",null,null,null,null,null,null,null,null,null,null,"08","12","09","1209","MARCAPATA",0,"0812","081209","1209-MARCAPATA"]
[null,null,null,null,null,null,null,null,null,null,null,null,null,null,null,null,null,null,null,"000007135","ESPINAR",7135,"1","08","08","01","11","10","01","","1001",6,"308","1001-ESPINAR",null,null,null,null,null,null,null,null,null,null,"08","12","10","1210","OCONGATE",0,"0812","081210","1210-OCONGATE"]
[null,null,null,null,null,null,null,null,null,null,null,null,null,null,null,null,null,null,null,"000010061","ESPINAR - ESSALUD",10061,"2","08","08","01","11","04","06","","0406",7,"208","0406-ESPINAR - ESSALUD",null,null,null,null,null,null,null,null,null,null,"08","12","11","1211","OROPESA",0,"0812","081211","1211-OROPESA"]
[null,null,null,null,null,null,null,null,null,null,null,null,null,null,null,null,null,null,null,"000010069","ESSALUD CALCA",10069,"2","08","04","01","11","02","06","","0206",8,"308","0206-ESSALUD CALCA",null,null,null,null,null,null,null,null,null,null,"08","12","12","1212","QUIQUIJANA",0,"0812","081212","1212-QUIQUIJANA"]
[null,null,null,null,null,null,null,null,null,null,null,null,null,null,null,null,null,null,null,"000008906","ESTRELLA",8906,"3","08","09","06","11","03","03","","0303",3,"308","0303-ESTRELLA",null,null,null,null,null,null,null,null,null,null,"08","13","01","1301","URUBAMBA",0,"0813","081301","1301-URUBAMBA"]
[null,null,null,null,null,null,null,null,null,null,null,null,null,null,null,null,null,null,null,"000018241","HAMPATURA",18241,"3","08","05","01","11","04","01","FED","0401",4,"308","0401-HAMPATURA",null,null,null,null,null,null,null,null,null,null,"08","13","02","1302","CHINCHERO",0,"0813","081302","1302-CHINCHERO"]
[null,null,null,null,null,null,null,null,null,null,null,null,null,null,null,null,null,null,null,"000002379","HERCCA",2379,"3","08","06","01","11","04","04","","0404",null,"308","0404-HERCCA",null,null,null,null,null,null,null,null,null,null,"08","13","03","1303","HUAYLLABAMBA",0,"0813","081303","1303-HUAYLLABAMBA"]
[null,null,null,null,null,null,null,null,null,null,null,null,null,null,null,null,null,null,null,"000002289","HOSPITAL DE APOYO DEPARTAMENTAL CUSCO",2289,"1","08","01","01","11","00","00","","0000",1,"208","0000-HOSPITAL DE APOYO DEPARTAMENTAL CUSCO",null,null,null,null,null,null,null,null,null,null,"08","13","04","1304","MACHUPICCHU",0,"0813","081304","1304-MACHUPICCHU"]
[null,null,null,null,null,null,null,null,null,null,null,null,null,null,null,null,null,null,null,"000010063","HOSPITAL ESSALUD SICUANI",10063,"1","08","06","01","11","04","04","","0404",1,"108","0404-HOSPITAL ESSALUD SICUANI",null,null,null,null,null,null,null,null,null,null,"08","13","05","1305","MARAS",0,"0813","081305","1305-MARAS"]
[null,null,null,null,null,null,null,null,null,null,null,null,null,null,null,null,null,null,null,"000010041","HOSPITAL NACIONAL ADOLFO GUEVARA VELASCO",10041,"1","08","01","08","11","02","02","","0202",2,"308","0202-HOSPITAL NACIONAL ADOLFO GUEVARA VELASCO",null,null,null,null,null,null,null,null,null,null,"08","13","06","1306","OLLANTAYTAMBO",0,"0813","081306","1306-OLLANTAYTAMBO"]
[null,null,null,null,null,null,null,null,null,null,null,null,null,null,null,null,null,null,null,"000002362","HUACHIBAMBA",2362,"3","08","04","08","11","02","08","","0208",5,"308","0208-HUACHIBAMBA",null,null,null,null,null,null,null,null,null,null,"08","13","07","1307","YUCAY",0,"0813","081307","1307-YUCAY"]
[null,null,null,null,null,null,null,null,null,null,null,null,null,null,null,null,null,null,null,"000007145","HUAMA",7145,"3","08","04","03","11","02","05","FED","0205",5,"208","0205-HUAMA",null,null,null,null,null,null,null,null,null,null,null,"00",null,"0000","(ALL)",null,null,null,"0000-(ALL)"]
[null,null,null,null,null,null,null,null,null,null,null,null,null,null,null,null,null,null,null,"000021061","HUAMANPATA",21061,"3","08","03","07","11","02","04","FED","0204",7,"308","0204-HUAMANPATA",null,null,null,null,null,null,null,null,null,null,null,"'01",null,"0000","(ALL)",null,null,null,"0000-(ALL)"]
[null,null,null,null,null,null,null,null,null,null,null,null,null,null,null,null,null,null,null,"000002354","HUANCALLE",2354,"3","08","04","07","11","02","05","FED","0205",7,"308","0205-HUANCALLE",null,null,null,null,null,null,null,null,null,null,null,"'02",null,"0000","(ALL)",null,null,null,"0000-(ALL)"]
[null,null,null,null,null,null,null,null,null,null,null,null,null,null,null,null,null,null,null,"000002520","HUANCARANI",2520,"2","08","11","05","11","01","06","FED","0106",8,"208","0106-HUANCARANI",null,null,null,null,null,null,null,null,null,null,null,"'03",null,"0000","(ALL)",null,null,null,"0000-(ALL)"]
[null,null,null,null,null,null,null,null,null,null,null,null,null,null,null,null,null,null,null,"000002504","HUANOQUITE",2504,"3","08","10","05","11","01","03","FED","0103",8,"308","0103-HUANOQUITE",null,null,null,null,null,null,null,null,null,null,null,"'04",null,"0000","(ALL)",null,null,null,"0000-(ALL)"]
[null,null,null,null,null,null,null,null,null,null,null,null,null,null,null,null,null,null,null,"000008911","HUARA HUARA",8911,"3","08","12","05","11","01","12","FED","0112",8,"208","0112-HUARA HUARA",null,null,null,null,null,null,null,null,null,null,null,"'05",null,"0000","(ALL)",null,null,null,"0000-(ALL)"]
[null,null,null,null,null,null,null,null,null,null,null,null,null,null,null,null,null,null,null,"000008913","HUARACO",8913,"3","08","07","04","11","08","01","FED","0801",8,"308","0801-HUARACO",null,null,null,null,null,null,null,null,null,null,null,"'06",null,"0000","(ALL)",null,null,null,"0000-(ALL)"]
[null,null,null,null,null,null,null,null,null,null,null,null,null,null,null,null,null,null,null,"000010759","HUARAN",10759,"3","08","04","01","11","02","06","","0206",8,"308","0206-HUARAN",null,null,null,null,null,null,null,null,null,null,null,"'07",null,"0000","(ALL)",null,null,null,"0000-(ALL)"]
[null,null,null,null,null,null,null,null,null,null,null,null,null,null,null,null,null,null,null,"000002532","HUARO",2532,"3","08","12","07","11","01","12","FED","0112",null,"208","0112-HUARO",null,null,null,null,null,null,null,null,null,null,null,"'08",null,"0000","(ALL)",null,null,null,"0000-(ALL)"]
[null,null,null,null,null,null,null,null,null,null,null,null,null,null,null,null,null,null,null,"000002333","HUAROCONDO",2333,"3","08","03","05","11","02","03","FED","0203",null,"208","0203-HUAROCONDO",null,null,null,null,null,null,null,null,null,null,null,"09",null,"0000","(ALL)",null,null,null,"0000-(ALL)"]
[null,null,null,null,null,null,null,null,null,null,null,null,null,null,null,null,null,null,null,"000025368","Huarqui",25368,"3","08","04","05","11","02","05","","0205",null,"308","0205-Huarqui",null,null,null,null,null,null,null,null,null,null,null,"'10",null,"0000","(ALL)",null,null,null,"0000-(ALL)"]
[null,null,null,null,null,null,null,null,null,null,null,null,null,null,null,null,null,null,null,"000002513","HUASAC",2513,"3","08","11","02","11","01","06","FED","0106",null,"308","0106-HUASAC",null,null,null,null,null,null,null,null,null,null,null,"'11",null,"0000","(ALL)",null,null,null,"0000-(ALL)"]
[null,null,null,null,null,null,null,null,null,null,null,null,null,null,null,null,null,null,null,"000007147","HUASQUILLAY",7147,"3","08","10","06","11","01","03","FED","0103",4,"308","0103-HUASQUILLAY",null,null,null,null,null,null,null,null,null,null,null,"'12",null,"0000","(ALL)",null,null,null,"0000-(ALL)"]
[null,null,null,null,null,null,null,null,null,null,null,null,null,null,null,null,null,null,null,"000002422","HUAYANAY",2422,"3","08","09","01","11","03","01","","0301",4,"308","0301-HUAYANAY",null,null,null,null,null,null,null,null,null,null,null,"'13",null,"0000","(ALL)",null,null,null,"0000-(ALL)"]
[null,null,null,null,null,null,null,null,null,null,null,null,null,null,null,null,null,null,null,"000002414","HUAYHUAHUASI",2414,"3","08","08","03","11","04","06","FED","0406",5,"308","0406-HUAYHUAHUASI"]
[null,null,null,null,null,null,null,null,null,null,null,null,null,null,null,null,null,null,null,"000002545","HUAYLLABAMBA",2545,"3","08","13","03","11","02","07","","0207",5,"308","0207-HUAYLLABAMBA"]
[null,null,null,null,null,null,null,null,null,null,null,null,null,null,null,null,null,null,null,"000002334","HUAYLLACOCHA",2334,"3","08","03","05","11","02","03","FED","0203",6,"308","0203-HUAYLLACOCHA"]
[null,null,null,null,null,null,null,null,null,null,null,null,null,null,null,null,null,null,null,"000008914","HUAYLLANI",8914,"3","08","07","04","11","08","01","FED",{"$f":"CONCATENATE(AB146,AC146)","v":"0801"},2,"308","0801-HUAYLLANI"]
[null,null,null,null,null,null,null,null,null,null,null,null,null,null,null,null,null,null,null,"000002455","HUAYOPATA",2455,"3","08","09","03","11","03","02","FED","0302",1,"308","0302-HUAYOPATA"]
[null,null,null,null,null,null,null,null,null,null,null,null,null,null,null,null,null,null,null,"000002466","HUILLCAPAMPA",2466,"3","08","09","06","11","03","03","","0303",null,"308",{"$f":"CONCATENATE(AE148,\"-\",U148)","v":"0303-HUILLCAPAMPA"}]
[null,null,null,null,null,null,null,null,null,null,null,null,null,null,null,null,null,null,null,"000002374","HUINCHIRI",2374,"3","08","05","07","11","04","01","FED","0401",null,"108","0401-HUINCHIRI"]
[null,null,null,null,null,null,null,null,null,null,null,null,null,null,null,null,null,null,null,"000002453","HUYRO",2453,"2","08","09","03","11","03","02","FED","0302",7,"308","0302-HUYRO"]
[null,null,null,null,null,null,null,null,null,null,null,null,null,null,null,null,null,null,null,"000002449","ICHIQUIATO",2449,"3","08","09","02","11","03","01","","0301",null,"308","0301-ICHIQUIATO"]
[null,null,null,null,null,null,null,null,null,null,null,null,null,null,null,null,null,null,null,"000002423","IDMA",2423,"3","08","09","01","11","03","01","","0301",null,"308","0301-IDMA"]
[null,null,null,null,null,null,null,null,null,null,null,null,null,null,null,null,null,null,null,"000007110","INCACANCHA",7110,"3","08","12","09","11","01","15","FED","0115",null,"308","0115-INCACANCHA"]
[null,null,null,null,null,null,null,null,null,null,null,null,null,null,null,null,null,null,null,"000002482","INCAHUASI",2482,"2","08","09","11","11","03","06","","0306",null,"208","0306-INCAHUASI"]
[null,null,null,null,null,null,null,null,null,null,null,null,null,null,null,null,null,null,null,"000002292","INDEPENDENCIA",2292,"2","08","01","01","11","02","01","","0201",null,"208","0201-INDEPENDENCIA"]
[null,null,null,null,null,null,null,null,null,null,null,null,null,null,null,null,null,null,null,"000016329","INGATA",16329,"3","08","07","03","11","08","02","FED","0802",null,"308","0802-INGATA"]
[null,null,null,null,null,null,null,null,null,null,null,null,null,null,null,null,null,null,null,"000002431","IVOCHOTE",2431,"3","08","09","02","11","03","04","","0304",null,"308","0304-IVOCHOTE"]
[null,null,null,null,null,null,null,null,null,null,null,null,null,null,null,null,null,null,null,"000002447","KAMANQUIRIATO",2447,"3","08","09","02","11","03","04","","0304",null,"308","0304-KAMANQUIRIATO"]
[null,null,null,null,null,null,null,null,null,null,null,null,null,null,null,null,null,null,null,"000002448","KAMISEA",2448,"2","08","09","14","11","03","05","","0305",null,"308","0305-KAMISEA"]
[null,null,null,null,null,null,null,null,null,null,null,null,null,null,null,null,null,null,null,"000002529","KCAURY",2529,"3","08","12","05","11","01","15","FED","0115",null,"208","0115-KCAURY"]
[null,null,null,null,null,null,null,null,null,null,null,null,null,null,null,null,null,null,null,"000002432","KEPASHIATO",2432,"2","08","09","02","11","03","04","","0304",8,"308","0304-KEPASHIATO"]
[null,null,null,null,null,null,null,null,null,null,null,null,null,null,null,null,null,null,null,"000002475","KIMBIRI ALTO",2475,"3","08","09","07","11","05","01","FED","0501",4,"308","0501-KIMBIRI ALTO"]
[null,null,null,null,null,null,null,null,null,null,null,null,null,null,null,null,null,null,null,"000002426","KIRIGUETI",2426,"2","08","09","14","11","03","05","","0305",8,"308","0305-KIRIGUETI"]
[null,null,null,null,null,null,null,null,null,null,null,null,null,null,null,null,null,null,null,"000016334","KISIO",16334,"3","08","07","05","11","08","02","FED","0802",8,"308","0802-KISIO"]
[null,null,null,null,null,null,null,null,null,null,null,null,null,null,null,null,null,null,null,"000002427","KITENI",2427,"2","08","09","02","11","03","04","","0304",1,"308","0304-KITENI"]
[null,null,null,null,null,null,null,null,null,null,null,null,null,null,null,null,null,null,null,"000002433","KORIBENI",2433,"3","08","09","02","11","03","01","","0301",1,"308","0301-KORIBENI"]
[null,null,null,null,null,null,null,null,null,null,null,null,null,null,null,null,null,null,null,"000002383","LA FLORIDA",2383,"3","08","06","01","11","04","05","","0405",2,"208","0405-LA FLORIDA"]
[null,null,null,null,null,null,null,null,null,null,null,null,null,null,null,null,null,null,null,"000002355","LA QUEBRADA",2355,"2","08","04","08","11","02","08","","0208",7,"308","0208-LA QUEBRADA"]
[null,null,null,null,null,null,null,null,null,null,null,null,null,null,null,null,null,null,null,"000002344","LAMAY",2344,"2","08","04","03","11","02","05","FED","0205",7,"308","0205-LAMAY"]
[null,null,null,null,null,null,null,null,null,null,null,null,null,null,null,null,null,null,null,"000002369","LANGUI",2369,"3","08","05","04","11","04","02","FED","0402",null,"308","0402-LANGUI"]
[null,null,null,null,null,null,null,null,null,null,null,null,null,null,null,null,null,null,null,"000002347","LARES",2347,"2","08","04","04","11","02","06","FED","0206",null,"308","0206-LARES"]
[null,null,null,null,null,null,null,null,null,null,null,null,null,null,null,null,null,null,null,"000002371","LAYO",2371,"2","08","05","05","11","04","02","FED","0402",null,"308","0402-LAYO"]
[null,null,null,null,null,null,null,null,null,null,null,null,null,null,null,null,null,null,null,"000002336","LIMATAMBO",2336,"2","08","03","06","11","02","04","FED","0204",1,"308","0204-LIMATAMBO"]
[null,null,null,null,null,null,null,null,null,null,null,null,null,null,null,null,null,null,null,"000002406","LIVITACA",2406,"2","08","07","05","11","08","02","FED","0802",1,"308","0802-LIVITACA"]
[null,null,null,null,null,null,null,null,null,null,null,null,null,null,null,null,null,null,null,"000006746","LLIQUE",6746,"3","08","07","01","11","08","01","FED","0801",1,"308","0801-LLIQUE"]
[null,null,null,null,null,null,null,null,null,null,null,null,null,null,null,null,null,null,null,"000002407","LLUSCO",2407,"3","08","07","06","11","08","01","FED","0801",1,"208","0801-LLUSCO"]
[null,null,null,null,null,null,null,null,null,null,null,null,null,null,null,null,null,null,null,"000002471","LOBO TAHUANTINSUYO",2471,"2","08","09","07","11","05","01","FED","0501",1,"308","0501-LOBO TAHUANTINSUYO"]
[null,null,null,null,null,null,null,null,null,null,null,null,null,null,null,null,null,null,null,"000002491","LUCMAHUAYCO",2491,"3","08","09","11","11","03","06","","0306",5,"308","0306-LUCMAHUAYCO"]
[null,null,null,null,null,null,null,null,null,null,null,null,null,null,null,null,null,null,null,"000002534","LUCRE",2534,"3","08","12","08","11","01","12","FED","0112",2,"308","0112-LUCRE"]
[null,null,null,null,null,null,null,null,null,null,null,null,null,null,null,null,null,null,null,"000006747","LUTTO",6747,"3","08","07","06","11","08","01","FED","0801",2,"308","0801-LUTTO"]
[null,null,null,null,null,null,null,null,null,null,null,null,null,null,null,null,null,null,null,"000010073","MACHU PICCHU - ESSALUD",10073,"2","08","13","04","11","02","07","","0207",2,"208","0207-MACHU PICCHU - ESSALUD"]
[null,null,null,null,null,null,null,null,null,null,null,null,null,null,null,null,null,null,null,"000002546","MACHUPICCHU",2546,"2","08","13","04","11","02","07","","0207",2,"308","0207-MACHUPICCHU"]
[null,null,null,null,null,null,null,null,null,null,null,null,null,null,null,null,null,null,null,"000002307","MANCO CAPAC",2307,"2","08","01","08","11","02","02","","0202",2,"308","0202-MANCO CAPAC"]
[null,null,null,null,null,null,null,null,null,null,null,null,null,null,null,null,null,null,null,"000008284","MANITEA ALTA",8284,"3","08","09","07","11","05","01","FED","0501",2,"308","0501-MANITEA ALTA"]
[null,null,null,null,null,null,null,null,null,null,null,null,null,null,null,null,null,null,null,"000002495","MANTARO",2495,"2","08","09","10","11","05","02","FED","0502",2,"308","0502-MANTARO"]
[null,null,null,null,null,null,null,null,null,null,null,null,null,null,null,null,null,null,null,"000002472","MAPITUNARI",2472,"3","08","09","07","11","05","01","FED","0501",2,"208","0501-MAPITUNARI"]
[null,null,null,null,null,null,null,null,null,null,null,null,null,null,null,null,null,null,null,"000002388","MARANGANI",2388,"2","08","06","04","11","04","04","FED","0404",2,"308","0404-MARANGANI"]
[null,null,null,null,null,null,null,null,null,null,null,null,null,null,null,null,null,null,null,"000002458","MARANURA",2458,"2","08","09","04","11","03","02","","0302",2,"308","0302-MARANURA"]
[null,null,null,null,null,null,null,null,null,null,null,null,null,null,null,null,null,null,null,"000002548","MARAS",2548,"2","08","13","05","11","02","07","","0207",3,"308","0207-MARAS"]
[null,null,null,null,null,null,null,null,null,null,null,null,null,null,null,null,null,null,null,"000002325","MARCACONGA",2325,"3","08","02","07","11","01","13","FED","0113",3,"208","0113-MARCACONGA"]
[null,null,null,null,null,null,null,null,null,null,null,null,null,null,null,null,null,null,null,"000002535","MARCAPATA",2535,"3","08","12","09","11","01","15","FED","0115",3,"308","0115-MARCAPATA"]
[null,null,null,null,null,null,null,null,null,null,null,null,null,null,null,null,null,null,null,"000002434","MATERIATO",2434,"3","08","09","02","11","03","04","","0304",4,"308","0304-MATERIATO"]
[null,null,null,null,null,null,null,null,null,null,null,null,null,null,null,null,null,null,null,"000008907","MATORIATO",8907,"3","08","09","06","11","03","03","","0303",4,"208","0303-MATORIATO"]
[null,null,null,null,null,null,null,null,null,null,null,null,null,null,null,null,null,null,null,"000006982","MELLOTOTORA",6982,"3","08","07","01","11","08","01","FED","0801",5,"308","0801-MELLOTOTORA"]
[null,null,null,null,null,null,null,null,null,null,null,null,null,null,null,null,null,null,null,"000002435","MIARIA",2435,"3","08","09","14","11","03","05","","0305",5,"308","0305-MIARIA"]
[null,null,null,null,null,null,null,null,null,null,null,null,null,null,null,null,null,null,null,"000002293","MIRAFLORES",2293,"3","08","01","01","11","02","09","","0209",5,"308","0209-MIRAFLORES"]
[null,null,null,null,null,null,null,null,null,null,null,null,null,null,null,null,null,null,null,"000002338","MOLLEPATA",2338,"2","08","03","07","11","02","04","FED","0204",6,"108","0204-MOLLEPATA"]
[null,null,null,null,null,null,null,null,null,null,null,null,null,null,null,null,null,null,null,"000002511","MOLLOMARCA",2511,"3","08","11","01","11","01","06","FED","0106",6,"308","0106-MOLLOMARCA"]
[null,null,null,null,null,null,null,null,null,null,null,null,null,null,null,null,null,null,null,"000013066","MONTETONI",13066,"3","08","09","14","11","03","05","","0305",6,"208","0305-MONTETONI"]
[null,null,null,null,null,null,null,null,null,null,null,null,null,null,null,null,null,null,null,"000002320","MOSOCLLACTA",2320,"3","08","02","04","11","04","03","FED","0403",9,"308","0403-MOSOCLLACTA"]
[null,null,null,null,null,null,null,null,null,null,null,null,null,null,null,null,null,null,null,"000002358","MUYUPAY",2358,"3","08","04","08","11","02","08","","0208",9,"308","0208-MUYUPAY"]
[null,null,null,null,null,null,null,null,null,null,null,null,null,null,null,null,null,null,null,"000007113","NATIVIDAD",7113,"3","08","09","10","11","05","02","FED","0502",9,"308","0502-NATIVIDAD"]
[null,null,null,null,null,null,null,null,null,null,null,null,null,null,null,null,null,null,null,"000002436","NUEVA LUZ",2436,"3","08","09","14","11","03","05","","0305",null,"308","0305-NUEVA LUZ"]
[null,null,null,null,null,null,null,null,null,null,null,null,null,null,null,null,null,null,null,"000015235","NUEVA VIDA",15235,"3","08","09","14","11","03","05","","0305",4,"208","0305-NUEVA VIDA"]
[null,null,null,null,null,null,null,null,null,null,null,null,null,null,null,null,null,null,null,"000002437","NUEVO MUNDO",2437,"3","08","09","14","11","03","05","","0305",7,"308","0305-NUEVO MUNDO"]
[null,null,null,null,null,null,null,null,null,null,null,null,null,null,null,null,null,null,null,"000002462","OCCOBAMBA LACONVENCION",2462,"2","08","09","05","11","03","03","","0303",7,"308","0303-OCCOBAMBA LACONVENCION"]
[null,null,null,null,null,null,null,null,null,null,null,null,null,null,null,null,null,null,null,"000002391","OCCOBAMBA MARANGANI",2391,"3","08","06","04","11","04","04","FED","0404",7,"308","0404-OCCOBAMBA MARANGANI"]
[null,null,null,null,null,null,null,null,null,null,null,null,null,null,null,null,null,null,null,"000002313","OCCOPATA",2313,"3","08","01","06","11","02","01","","0201",7,"208","0201-OCCOPATA"]
[null,null,null,null,null,null,null,null,null,null,null,null,null,null,null,null,null,null,null,"000002415","OCCORURO",2415,"3","08","08","04","11","04","06","FED","0406",7,"308","0406-OCCORURO"]
[null,null,null,null,null,null,null,null,null,null,null,null,null,null,null,null,null,null,null,"000002544","OCCOTUAN",2544,"3","08","13","02","11","02","07","",{"$f":"CONCATENATE(AB210,AC210)","v":"0207"},null,"208","0207-OCCOTUAN"]
[null,null,null,null,null,null,null,null,null,null,null,null,null,null,null,null,null,null,null,"000002536","OCONGATE",2536,"2","08","12","10","11","01","15","FED","0115",null,"308","0115-OCONGATE"]
[null,null,null,null,null,null,null,null,null,null,null,null,null,null,null,null,null,null,null,"000002549","OLLANTAYTAMBO",2549,"2","08","13","06","11","02","07","FED","0207",null,"308",{"$f":"CONCATENATE(AE212,\"-\",U212)","v":"0207-OLLANTAYTAMBO"}]
[null,null,null,null,null,null,null,null,null,null,null,null,null,null,null,null,null,null,null,"000002505","OMACHA",2505,"3","08","10","06","11","01","03","FED","0103",null,"308","0103-OMACHA"]
[null,null,null,null,null,null,null,null,null,null,null,null,null,null,null,null,null,null,null,"000002496","OMAYA",2496,"3","08","09","10","11","05","02","FED","0502",null,"308","0502-OMAYA"]
[null,null,null,null,null,null,null,null,null,null,null,null,null,null,null,null,null,null,null,"000006983","ORCCOMA",6983,"3","08","07","01","11","08","01","FED","0801",2,"308","0801-ORCCOMA"]
[null,null,null,null,null,null,null,null,null,null,null,null,null,null,null,null,null,null,null,"000002537","OROPESA",2537,"2","08","12","11","11","01","12","","0112",2,"308","0112-OROPESA"]
[null,null,null,null,null,null,null,null,null,null,null,null,null,null,null,null,null,null,null,"000002497","OTARI",2497,"3","08","09","10","11","05","02","FED","0502",2,"308","0502-OTARI"]
[null,null,null,null,null,null,null,null,null,null,null,null,null,null,null,null,null,null,null,"000007143","OTOCANI",7143,"3","08","11","03","11","02","06","FED","0206",2,"308","0206-OTOCANI"]
[null,null,null,null,null,null,null,null,null,null,null,null,null,null,null,null,null,null,null,"000002484","OYARA",2484,"3","08","09","09","11","03","06","","0306",2,"308","0306-OYARA"]
[null,null,null,null,null,null,null,null,null,null,null,null,null,null,null,null,null,null,null,"000002507","PACCARECTAMBO",2507,"3","08","10","07","11","01","03","FED","0103",2,"308","0103-PACCARECTAMBO"]
[null,null,null,null,null,null,null,null,null,null,null,null,null,null,null,null,null,null,null,"000002485","PACCAYBAMBA",2485,"3","08","09","11","11","03","06","","0306",2,"308","0306-PACCAYBAMBA"]
[null,null,null,null,null,null,null,null,null,null,null,null,null,null,null,null,null,null,null,"000002438","PACHIRI",2438,"3","08","09","02","11","03","04","","0304",3,"208","0304-PACHIRI"]
[null,null,null,null,null,null,null,null,null,null,null,null,null,null,null,null,null,null,null,"000002416","PALLPATA",2416,"3","08","08","05","11","04","06","FED","0406",10,"208","0406-PALLPATA"]
[null,null,null,null,null,null,null,null,null,null,null,null,null,null,null,null,null,null,null,"000002439","PALMA REAL",2439,"2","08","09","02","11","03","01","","0301",3,"308","0301-PALMA REAL"]
[null,null,null,null,null,null,null,null,null,null,null,null,null,null,null,null,null,null,null,"000002492","PALTAYBAMBA",2492,"3","08","09","09","11","03","06","","0306",2,"308","0306-PALTAYBAMBA"]
[null,null,null,null,null,null,null,null,null,null,null,null,null,null,null,null,null,null,null,"000002430","PAMPA CONCEPCION",2430,"3","08","09","02","11","03","01","","0301",2,"308","0301-PAMPA CONCEPCION"]
[null,null,null,null,null,null,null,null,null,null,null,null,null,null,null,null,null,null,null,"000002524","PAMPACAMARA",2524,"3","08","12","05","11","01","15","FED","0115",2,"208","0115-PAMPACAMARA"]
[null,null,null,null,null,null,null,null,null,null,null,null,null,null,null,null,null,null,null,"000002486","PAMPACONAS",2486,"3","08","09","09","11","03","06","","0306",2,"208","0306-PAMPACONAS"]
[null,null,null,null,null,null,null,null,null,null,null,null,null,null,null,null,null,null,null,"000002337","PAMPACONGA",2337,"3","08","03","06","11","02","04","FED","0204",2,"308","0204-PAMPACONGA"]
[null,null,null,null,null,null,null,null,null,null,null,null,null,null,null,null,null,null,null,"000002372","PAMPAMARCA",2372,"3","08","05","06","11","04","01","FED","0401",2,"308","0401-PAMPAMARCA"]
[null,null,null,null,null,null,null,null,null,null,null,null,null,null,null,null,null,null,null,"000002384","PAMPAPHALLA",2384,"2","08","06","01","11","04","05","","0405",2,"308","0405-PAMPAPHALLA"]
[null,null,null,null,null,null,null,null,null,null,null,null,null,null,null,null,null,null,null,"000002440","PANGOA",2440,"3","08","09","02","11","03","04","","0304",2,"308","0304-PANGOA"]
[null,null,null,null,null,null,null,null,null,null,null,null,null,null,null,null,null,null,null,"000006972","PANTIPATA",6972,"3","08","03","04","11","02","03","FED","0203",2,"308","0203-PANTIPATA"]
[null,null,null,null,null,null,null,null,null,null,null,null,null,null,null,null,null,null,null,"000002515","PAROBAMBA",2515,"3","08","11","03","11","02","06","FED","0206",3,"308","0206-PAROBAMBA"]
[null,null,null,null,null,null,null,null,null,null,null,null,null,null,null,null,null,null,null,"000002499","PARURO",2499,"2","08","10","01","11","01","03","FED","0103",4,"308","0103-PARURO"]
[null,null,null,null,null,null,null,null,null,null,null,null,null,null,null,null,null,null,null,"000007144","PATABAMBA",7144,"3","08","04","07","11","02","06","FED","0206",9,"308","0206-PATABAMBA"]
[null,null,null,null,null,null,null,null,null,null,null,null,null,null,null,null,null,null,null,"000010760","PATACANCHA",10760,"3","08","13","06","11","02","07","FED","0207",9,"208","0207-PATACANCHA"]
[null,null,null,null,null,null,null,null,null,null,null,null,null,null,null,null,null,null,null,"000016332","PATAQUEÑA -LIVITACA",16332,"3","08","07","05","11","08","02","FED","0802",9,"208","0802-PATAQUEÑA -LIVITACA"]
[null,null,null,null,null,null,null,null,null,null,null,null,null,null,null,null,null,null,null,"000002522","PATRIA",2522,"3","08","11","06","11","01","06","FED","0106",9,"308","0106-PATRIA"]
[null,null,null,null,null,null,null,null,null,null,null,null,null,null,null,null,null,null,null,"000002510","PAUCARTAMBO",2510,"2","08","11","01","11","01","06","FED","0106",9,"308","0106-PAUCARTAMBO"]
[null,null,null,null,null,null,null,null,null,null,null,null,null,null,null,null,null,null,null,"000010077","PAUCARTAMBO - ESSALUD",10077,"3","08","11","01","11","01","06","","0106",9,"308","0106-PAUCARTAMBO - ESSALUD"]
[null,null,null,null,null,null,null,null,null,null,null,null,null,null,null,null,null,null,null,"000015842","PAVAYOC",15842,"2","08","09","01","11","03","01","","0301",10,"208","0301-PAVAYOC"]
[null,null,null,null,null,null,null,null,null,null,null,null,null,null,null,null,null,null,null,"000008915","PFULLPURI CONDEPAMPA",8915,"3","08","07","01","11","08","01","FED","0801",10,"308","0801-PFULLPURI CONDEPAMPA"]
[null,null,null,null,null,null,null,null,null,null,null,null,null,null,null,null,null,null,null,"000002393","PHINAYA",2393,"3","08","06","05","11","04","05","FED","0405",10,"308","0405-PHINAYA"]
[null,null,null,null,null,null,null,null,null,null,null,null,null,null,null,null,null,null,null,"000002294","PICCHU LA RINCONADA",2294,"2","08","01","01","11","02","09","","0209",1,"308","0209-PICCHU LA RINCONADA"]
[null,null,null,null,null,null,null,null,null,null,null,null,null,null,null,null,null,null,null,"000002494","PICHARI",2494,"2","08","09","10","11","05","02","FED","0502",2,"308","0502-PICHARI"]
[null,null,null,null,null,null,null,null,null,null,null,null,null,null,null,null,null,null,null,"000015170","PICHARI BAJA",15170,"3","08","09","10","11","05","02","FED","0502",null,"308","0502-PICHARI BAJA"]
[null,null,null,null,null,null,null,null,null,null,null,null,null,null,null,null,null,null,null,"000002417","PICHIGUA ESPINAR",2417,"3","08","08","06","11","04","06","FED","0406",4,"208","0406-PICHIGUA ESPINAR"]
[null,null,null,null,null,null,null,null,null,null,null,null,null,null,null,null,null,null,null,"000002517","PICHIHUA COLQUEPATA",2517,"3","08","11","04","11","01","06","FED","0106",5,"208","0106-PICHIHUA COLQUEPATA"]
[null,null,null,null,null,null,null,null,null,null,null,null,null,null,null,null,null,null,null,"000002521","PILCOPATA",2521,"2","08","11","06","11","01","06","FED","0106",7,"308","0106-PILCOPATA"]
[null,null,null,null,null,null,null,null,null,null,null,null,null,null,null,null,null,null,null,"000002508","PILLPINTO",2508,"3","08","10","08","11","01","13","FED","0113",1,"208","0113-PILLPINTO"]
[null,null,null,null,null,null,null,null,null,null,null,null,null,null,null,null,null,null,null,"000002348","PISAC",2348,"2","08","04","05","11","02","05","FED","0205",1,"308","0205-PISAC"]
[null,null,null,null,null,null,null,null,null,null,null,null,null,null,null,null,null,null,null,"000025739","PISQUICOCHA",25739,"3","08","07","05","11","08","02","","0802",1,"308","0802-PISQUICOCHA"]
[null,null,null,null,null,null,null,null,null,null,null,null,null,null,null,null,null,null,null,"000015169","PITIRINQUINI",15169,"3","08","09","10","11","05","02","FED","0502",1,"208","0502-PITIRINQUINI"]
[null,null,null,null,null,null,null,null,null,null,null,null,null,null,null,null,null,null,null,"000002392","PITUMARCA",2392,"2","08","06","05","11","04","03","FED","0403",1,"308","0403-PITUMARCA"]
[null,null,null,null,null,null,null,null,null,null,null,null,null,null,null,null,null,null,null,"000011743","Policlinico PNP \"Santa Rosa\" Cusco",11473,"","08","01","05","11","01","16","","0116",1,"208","0116-Policlinico PNP \"Santa Rosa\" Cusco"]
[null,null,null,null,null,null,null,null,null,null,null,null,null,null,null,null,null,null,null,"000010065","Policlinico San Sebastian (ESSALUD)",10065,"","08","01","05","11","01","16","","0116",7,"308","0116-Policlinico San Sebastian (ESSALUD)"]
[null,null,null,null,null,null,null,null,null,null,null,null,null,null,null,null,null,null,null,"000002321","POMACANCHI",2321,"2","08","02","05","11","01","13","FED","0113",8,"208","0113-POMACANCHI"]
[null,null,null,null,null,null,null,null,null,null,null,null,null,null,null,null,null,null,null,"000002365","PONGOÑA",2365,"3","08","05","01","11","04","01","FED","0401",3,"308","0401-PONGOÑA"]
[null,null,null,null,null,null,null,null,null,null,null,null,null,null,null,null,null,null,null,"000007146","POQUES",7146,"3","08","04","03","11","02","05","FED","0205",6,"308","0205-POQUES"]
[null,null,null,null,null,null,null,null,null,null,null,null,null,null,null,null,null,null,null,"000002299","POROY",2299,"3","08","01","03","11","02","09","","0209",8,"308","0209-POROY"]
[null,null,null,null,null,null,null,null,null,null,null,null,null,null,null,null,null,null,null,"000011745","Posta Médica de Salud  PNP Canchis",11745,"","08","06","01","11","04","04","","0404",8,"308","0404-Posta Médica de Salud  PNP Canchis"]
[null,null,null,null,null,null,null,null,null,null,null,null,null,null,null,null,null,null,null,"000013185","POSTA MEDICA DE SANTO TOMÁS - ESSALUD",13185,"3","08","07","01","11","08","01","","0801",8,"308","0801-POSTA MEDICA DE SANTO TOMÁS - ESSALUD"]
[null,null,null,null,null,null,null,null,null,null,null,null,null,null,null,null,null,null,null,"000011744","Posta medica PNP",11744,"","08","09","01","11","03","01","","0301",null,"208","0301-Posta medica PNP"]
[null,null,null,null,null,null,null,null,null,null,null,null,null,null,null,null,null,null,null,"000002424","POTRERO",2424,"3","08","09","01","11","03","01","","0301",7,"208","0301-POTRERO"]
[null,null,null,null,null,null,null,null,null,null,null,null,null,null,null,null,null,null,null,"000002480","PUCYURA",2480,"2","08","09","09","11","03","06","","0306",4,"208","0306-PUCYURA"]
[null,null,null,null,null,null,null,null,null,null,null,null,null,null,null,null,null,null,null,"000002339","PUCYURA ANTA",2339,"2","08","03","08","11","02","03","","0203",5,"308","0203-PUCYURA ANTA"]
[null,null,null,null,null,null,null,null,null,null,null,null,null,null,null,null,null,null,null,"000008283","PUEBLO LIBRE",8283,"3","08","09","13","11","05","01","FED","0501",5,"208","0501-PUEBLO LIBRE"]
[null,null,null,null,null,null,null,null,null,null,null,null,null,null,null,null,null,null,null,"000002467","PUENTE SANTIAGO",2467,"3","08","09","06","11","02","08","","0208",1,"308","0208-PUENTE SANTIAGO"]
[null,null,null,null,null,null,null,null,null,null,null,null,null,null,null,null,null,null,null,"000002441","PUERTO HUALLANA",2441,"3","08","09","14","11","03","05","","0305",3,"208","0305-PUERTO HUALLANA"]
[null,null,null,null,null,null,null,null,null,null,null,null,null,null,null,null,null,null,null,"000002498","PUERTO MAYO",2498,"3","08","09","10","11","05","02","FED","0502",1,"308","0502-PUERTO MAYO"]
[null,null,null,null,null,null,null,null,null,null,null,null,null,null,null,null,null,null,null,"000002442","PUERTO RICO",2442,"3","08","09","14","11","03","05","","0305",2,"308","0305-PUERTO RICO"]
[null,null,null,null,null,null,null,null,null,null,null,null,null,null,null,null,null,null,null,"000013069","PUGUIENTIMARI",13069,"3","08","09","02","11","03","04","","0304",3,"208","0304-PUGUIENTIMARI"]
[null,null,null,null,null,null,null,null,null,null,null,null,null,null,null,null,null,null,null,"000002399","PULPERA",2399,"3","08","07","01","11","08","01","FED",{"$f":"CONCATENATE(AB274,AC274)","v":"0801"},6,"308","0801-PULPERA"]
[null,null,null,null,null,null,null,null,null,null,null,null,null,null,null,null,null,null,null,"000025369","PUMALLACTA",25369,"3","08","07","01","11","08","01","","0801",6,"208","0801-PUMALLACTA"]
[null,null,null,null,null,null,null,null,null,null,null,null,null,null,null,null,null,null,null,"000002359","PUTUCUSI",2359,"2","08","04","08","11","02","08","","0208",7,"208",{"$f":"CONCATENATE(AE276,\"-\",U276)","v":"0208-PUTUCUSI"}]
[null,null,null,null,null,null,null,null,null,null,null,null,null,null,null,null,null,null,null,"000002381","QUEHUAR",2381,"3","08","06","01","11","04","05","","0405",8,"308","0405-QUEHUAR"]
[null,null,null,null,null,null,null,null,null,null,null,null,null,null,null,null,null,null,null,"000002373","QUEHUE",2373,"3","08","05","07","11","04","01","FED","0401",3,"308","0401-QUEHUE"]
[null,null,null,null,null,null,null,null,null,null,null,null,null,null,null,null,null,null,null,"000002351","QUELLO QUELLO",2351,"3","08","04","05","11","02","05","FED","0205",4,"308","0205-QUELLO QUELLO"]
[null,null,null,null,null,null,null,null,null,null,null,null,null,null,null,null,null,null,null,"000002465","QUELLOUNO",2465,"2","08","09","06","11","03","03","","0303",4,"308","0303-QUELLOUNO"]
[null,null,null,null,null,null,null,null,null,null,null,null,null,null,null,null,null,null,null,"000002360","QUESQUENTO",2360,"3","08","04","08","11","02","08","","0208",4,"308","0208-QUESQUENTO"]
[null,null,null,null,null,null,null,null,null,null,null,null,null,null,null,null,null,null,null,"000002421","QUILLABAMBA",2421,"1","08","09","01","11","09","01","","0901",1,"308","0901-QUILLABAMBA"]
[null,null,null,null,null,null,null,null,null,null,null,null,null,null,null,null,null,null,null,"000010062","QUILLABAMBA -ESSALUD",10062,"2","08","09","01","11","03","01","","0301",1,"308","0301-QUILLABAMBA -ESSALUD"]
[null,null,null,null,null,null,null,null,null,null,null,null,null,null,null,null,null,null,null,"000002526","QUINCE MIL",2526,"2","08","12","03","11","01","15","","0115",2,"308","0115-QUINCE MIL"]
[null,null,null,null,null,null,null,null,null,null,null,null,null,null,null,null,null,null,null,"000002408","QUIÑOTA",2408,"3","08","07","07","11","08","01","FED","0801",3,"308","0801-QUIÑOTA"]
[null,null,null,null,null,null,null,null,null,null,null,null,null,null,null,null,null,null,null,"000002538","QUIQUIJANA",2538,"2","08","12","12","11","01","12","FED","0112",5,"308","0112-QUIQUIJANA"]
[null,null,null,null,null,null,null,null,null,null,null,null,null,null,null,null,null,null,null,"000007114","QUISTO CENTRAL",7114,"3","08","09","10","11","05","02","FED","0502",6,"308","0502-QUISTO CENTRAL"]
[null,null,null,null,null,null,null,null,null,null,null,null,null,null,null,null,null,null,null,"000002323","RONDOCAN",2323,"2","08","02","06","11","01","16","FED","0116",6,"308","0116-RONDOCAN"]
[null,null,null,null,null,null,null,null,null,null,null,null,null,null,null,null,null,null,null,"000012924","SAHUA SAHUA",12924,"3","08","10","06","11","01","03","FED","0103",7,"308","0103-SAHUA SAHUA"]
[null,null,null,null,null,null,null,null,null,null,null,null,null,null,null,null,null,null,null,"000002474","SAMANIATO",2474,"3","08","09","07","11","05","01","FED","0501",8,"308","0501-SAMANIATO"]
[null,null,null,null,null,null,null,null,null,null,null,null,null,null,null,null,null,null,null,"000002450","SAN ANTONIO",2450,"3","08","09","02","11","03","01","","0301",1,"308","0301-SAN ANTONIO"]
[null,null,null,null,null,null,null,null,null,null,null,null,null,null,null,null,null,null,null,"000002300","SAN JERONIMO",2300,"2","08","01","04","11","01","16","","0116",1,"308","0116-SAN JERONIMO"]
[null,null,null,null,null,null,null,null,null,null,null,null,null,null,null,null,null,null,null,"000002469","SAN JUAN DE KIMBIRI-VRAEM",2469,"1","08","09","07","11","05","01","FED","0501",1,"308","0501-SAN JUAN DE KIMBIRI-VRAEM"]
[null,null,null,null,null,null,null,null,null,null,null,null,null,null,null,null,null,null,null,"000002322","SAN JUAN DE POMACANCHI",2322,"3","08","02","05","11","01","13","FED","0113",1,"308","0113-SAN JUAN DE POMACANCHI"]
[null,null,null,null,null,null,null,null,null,null,null,null,null,null,null,null,null,null,null,"000002468","SAN MARTIN",2468,"3","08","09","06","11","03","03","","0303",2,"308","0303-SAN MARTIN"]
[null,null,null,null,null,null,null,null,null,null,null,null,null,null,null,null,null,null,null,"000002418","SAN MIGUEL",2418,"3","08","08","06","11","04","06","FED","0406",2,"308","0406-SAN MIGUEL"]
[null,null,null,null,null,null,null,null,null,null,null,null,null,null,null,null,null,null,null,"000002394","SAN PABLO CANCHIS",2394,"3","08","06","06","11","04","05","FED","0405",null,"308","0405-SAN PABLO CANCHIS"]
[null,null,null,null,null,null,null,null,null,null,null,null,null,null,null,null,null,null,null,"000002457","SAN PABLO HUAYOPATA",2457,"3","08","09","03","11","03","02","FED","0302",null,"308","0302-SAN PABLO HUAYOPATA"]
[null,null,null,null,null,null,null,null,null,null,null,null,null,null,null,null,null,null,null,"000002396","SAN PEDRO CANCHIS",2396,"3","08","06","07","11","04","05","","0405",8,"308","0405-SAN PEDRO CANCHIS"]
[null,null,null,null,null,null,null,null,null,null,null,null,null,null,null,null,null,null,null,"000002290","SAN PEDRO CUSCO",2290,"3","08","01","01","11","02","09","","0209",8,"308","0209-SAN PEDRO CUSCO"]
[null,null,null,null,null,null,null,null,null,null,null,null,null,null,null,null,null,null,null,"000002352","SAN SALVADOR",2352,"2","08","04","06","11","02","05","FED","0205",8,"308","0205-SAN SALVADOR"]
[null,null,null,null,null,null,null,null,null,null,null,null,null,null,null,null,null,null,null,"000002301","SAN SEBASTIAN",2301,"2","08","01","05","11","01","16","","0116",9,"308","0116-SAN SEBASTIAN"]
[null,null,null,null,null,null,null,null,null,null,null,null,null,null,null,null,null,null,null,"000002324","SANGARARA",2324,"3","08","02","07","11","01","13","FED","0113",9,"308","0113-SANGARARA"]
[null,null,null,null,null,null,null,null,null,null,null,null,null,null,null,null,null,null,null,"000002443","SANIRIATO",2443,"3","08","09","02","11","03","04","","0304",9,"108","0304-SANIRIATO"]
[null,null,null,null,null,null,null,null,null,null,null,null,null,null,null,null,null,null,null,"000012926","SANTA  LUCIA",12926,"3","08","02","05","11","01","13","FED","0113",9,"308","0113-SANTA  LUCIA"]
[null,null,null,null,null,null,null,null,null,null,null,null,null,null,null,null,null,null,null,"000008910","SANTA ANA",8910,"2","08","09","01","11","03","01","","0301",9,"308","0301-SANTA ANA"]
[null,null,null,null,null,null,null,null,null,null,null,null,null,null,null,null,null,null,null,"000002395","SANTA BARBARA",2395,"3","08","06","06","11","04","05","FED","0405",10,"308","0405-SANTA BARBARA"]
[null,null,null,null,null,null,null,null,null,null,null,null,null,null,null,null,null,null,null,"000002460","SANTA MARIA",2460,"3","08","09","04","11","03","02","","0302",null,"308","0302-SANTA MARIA"]
[null,null,null,null,null,null,null,null,null,null,null,null,null,null,null,null,null,null,null,"000002303","SANTA ROSA",2303,"2","08","01","05","11","01","16","","0116",null,"308","0116-SANTA ROSA"]
[null,null,null,null,null,null,null,null,null,null,null,null,null,null,null,null,null,null,null,"000002476","SANTA TERESA",2476,"2","08","09","08","11","03","02","","0302",null,"308","0302-SANTA TERESA"]
[null,null,null,null,null,null,null,null,null,null,null,null,null,null,null,null,null,null,null,"000002398","SANTO TOMAS",2398,"1","08","07","01","11","08","01","FED","0801",3,"308","0801-SANTO TOMAS"]
[null,null,null,null,null,null,null,null,null,null,null,null,null,null,null,null,null,null,null,"000002314","SAYLLA",2314,"3","08","01","07","11","01","16","","0116",4,"208","0116-SAYLLA"]
[null,null,null,null,null,null,null,null,null,null,null,null,null,null,null,null,null,null,null,"000006975","SAYLLAFAYA",6975,"3","08","04","03","11","02","05","FED","0205",5,"308","0205-SAYLLAFAYA"]
[null,null,null,null,null,null,null,null,null,null,null,null,null,null,null,null,null,null,null,"000002493","SELVA ALEGRE",2493,"3","08","09","09","11","03","04","","0304",6,"308","0304-SELVA ALEGRE"]
[null,null,null,null,null,null,null,null,null,null,null,null,null,null,null,null,null,null,null,"000002444","SENSA",2444,"3","08","09","14","11","03","05","","0305",6,"308","0305-SENSA"]
[null,null,null,null,null,null,null,null,null,null,null,null,null,null,null,null,null,null,null,"000002452","SHIVANKORENI",2452,"3","08","09","14","11","03","05","","0305",null,"308","0305-SHIVANKORENI"]
[null,null,null,null,null,null,null,null,null,null,null,null,null,null,null,null,null,null,null,"000002378","SICUANI",2378,"1","08","06","01","11","07","01","","0701",null,"308","0701-SICUANI"]
[null,null,null,null,null,null,null,null,null,null,null,null,null,null,null,null,null,null,null,"000002291","SIETE CUARTONES",2291,"2","08","01","01","11","02","09","","0209",null,"308","0209-SIETE CUARTONES"]
[null,null,null,null,null,null,null,null,null,null,null,null,null,null,null,null,null,null,null,"000002477","SULLUCUYOC",2477,"3","08","09","08","11","03","02","","0302",null,"308","0302-SULLUCUYOC"]
[null,null,null,null,null,null,null,null,null,null,null,null,null,null,null,null,null,null,null,"000002375","SURIMANA",2375,"3","08","05","08","11","04","01","FED","0401",null,"208","0401-SURIMANA"]
[null,null,null,null,null,null,null,null,null,null,null,null,null,null,null,null,null,null,null,"000002419","SUYKUTAMBO",2419,"3","08","08","07","11","04","06","FED","0406",null,"308","0406-SUYKUTAMBO"]
[null,null,null,null,null,null,null,null,null,null,null,null,null,null,null,null,null,null,null,"000002361","SUYO",2361,"3","08","04","04","11","02","06","FED","0206",null,"308","0206-SUYO"]
[null,null,null,null,null,null,null,null,null,null,null,null,null,null,null,null,null,null,null,"000015104","TAMBO DEL ENE",15104,"3","08","09","10","11","05","02","FED","0502",null,"308","0502-TAMBO DEL ENE"]
[null,null,null,null,null,null,null,null,null,null,null,null,null,null,null,null,null,null,null,"000013067","TANGOSHIARI",13067,"3","08","09","14","11","03","05","","0305",null,"308","0305-TANGOSHIARI"]
[null,null,null,null,null,null,null,null,null,null,null,null,null,null,null,null,null,null,null,"000002353","TARAY",2353,"3","08","04","07","11","02","05","FED","0205",null,"308","0205-TARAY"]
[null,null,null,null,null,null,null,null,null,null,null,null,null,null,null,null,null,null,null,"000002380","TECHO OBRERO",2380,"2","08","06","01","11","04","04","","0404",null,"308","0404-TECHO OBRERO"]
[null,null,null,null,null,null,null,null,null,null,null,null,null,null,null,null,null,null,null,"000002445","TIMPIA",2445,"3","08","09","14","11","03","05","","0305",null,"108","0305-TIMPIA"]
[null,null,null,null,null,null,null,null,null,null,null,null,null,null,null,null,null,null,null,"000006977","TINKI",6977,"3","08","12","10","11","01","15","FED","0115",null,"108","0115-TINKI"]
[null,null,null,null,null,null,null,null,null,null,null,null,null,null,null,null,null,null,null,"000002397","TINTA",2397,"2","08","06","08","11","04","03","FED","0403",null,"208","0403-TINTA"]
[null,null,null,null,null,null,null,null,null,null,null,null,null,null,null,null,null,null,null,"000006745","TINTAYA MARQUIRI",6745,"3","08","08","01","11","04","06","","0406",null,"208","0406-TINTAYA MARQUIRI"]
[null,null,null,null,null,null,null,null,null,null,null,null,null,null,null,null,null,null,null,"000006970","TIRACANCHA",6970,"3","08","04","06","11","02","05","FED","0205",null,"108","0205-TIRACANCHA"]
[null,null,null,null,null,null,null,null,null,null,null,null,null,null,null,null,null,null,null,"000002377","TOCCOCCORI",2377,"3","08","05","08","11","04","01","FED","0401",null,"08","0401-TOCCOCCORI"]
[null,null,null,null,null,null,null,null,null,null,null,null,null,null,null,null,null,null,null,"000006979","TOCRA",6979,"3","08","11","04","11","01","06","FED","0106",null,"208","0106-TOCRA"]
[null,null,null,null,null,null,null,null,null,null,null,null,null,null,null,null,null,null,null,"000002478","TOTORA",2478,"3","08","09","08","11","03","02","","0302",null,"208","0302-TOTORA"]
[null,null,null,null,null,null,null,null,null,null,null,null,null,null,null,null,null,null,null,"000006985","TOTORAPALLCA",6985,"3","08","07","06","11","08","01","FED","0801",null,"208","0801-TOTORAPALLCA"]
[null,null,null,null,null,null,null,null,null,null,null,null,null,null,null,null,null,null,null,"000025740","TOTORA-REYNA DE LOS ANGELES",25740,"3","08","07","05","11","08","02","","0802",null,"08","0802-TOTORA-REYNA DE LOS ANGELES"]
[null,null,null,null,null,null,null,null,null,null,null,null,null,null,null,null,null,null,null,"000013068","TRIO RIO",13068,"3","08","09","02","11","03","04","","0304",null,"208","0304-TRIO RIO"]
[null,null,null,null,null,null,null,null,null,null,null,null,null,null,null,null,null,null,null,"000002316","TTIO",2316,"2","08","01","08","11","02","02","",{"$f":"CONCATENATE(AB338,AC338)","v":"0202"},null,"308","0202-TTIO"]
[null,null,null,null,null,null,null,null,null,null,null,null,null,null,null,null,null,null,null,"000002376","TUNGASUCA",2376,"3","08","05","08","11","04","01","FED","0401",null,"308","0401-TUNGASUCA"]
[null,null,null,null,null,null,null,null,null,null,null,null,null,null,null,null,null,null,null,"000025371","TUNTUMA",25371,"3","08","07","01","11","08","01","","0801",null,"308",{"$f":"CONCATENATE(AE340,\"-\",U340)","v":"0801-TUNTUMA"}]
[null,null,null,null,null,null,null,null,null,null,null,null,null,null,null,null,null,null,null,"000002304","TUPAC AMARU",2304,"2","08","01","05","11","01","16","","0116",null,"308","0116-TUPAC AMARU"]
[null,null,null,null,null,null,null,null,null,null,null,null,null,null,null,null,null,null,null,"000002363","TUPAC AMARU QUELLOUNO",2363,"3","08","04","08","11","03","03","","0303",null,"308","0303-TUPAC AMARU QUELLOUNO"]
[null,null,null,null,null,null,null,null,null,null,null,null,null,null,null,null,null,null,null,"000016328","UCCHUCCARCCO",16328,"3","08","07","03","11","08","02","FED","0802",null,"308","0802-UCCHUCCARCCO"]
[null,null,null,null,null,null,null,null,null,null,null,null,null,null,null,null,null,null,null,"000002461","UCHUMAYO",2461,"3","08","09","04","11","03","02","","0302",null,"308","0302-UCHUMAYO"]
[null,null,null,null,null,null,null,null,null,null,null,null,null,null,null,null,null,null,null,"000002473","UNION ROSALES",2473,"3","08","09","07","11","05","01","FED","0501",null,"308","0501-UNION ROSALES"]
[null,null,null,null,null,null,null,null,null,null,null,null,null,null,null,null,null,null,null,"000010761","URATARI",10761,"3","08","03","06","11","02","04","FED","0204",null,"08","0204-URATARI"]
[null,null,null,null,null,null,null,null,null,null,null,null,null,null,null,null,null,null,null,"000002523","URCOS",2523,"2","08","12","01","11","01","12","FED","0112",null,"08","0112-URCOS"]
[null,null,null,null,null,null,null,null,null,null,null,null,null,null,null,null,null,null,null,"000010068","URCOS ESSALUD",10068,"2","08","12","01","11","01","12","","0112",null,"08","0112-URCOS ESSALUD"]
[null,null,null,null,null,null,null,null,null,null,null,null,null,null,null,null,null,null,null,"000002413","URINSAYA",2413,"3","08","08","03","11","04","06","FED","0406",null,"08","0406-URINSAYA"]
[null,null,null,null,null,null,null,null,null,null,null,null,null,null,null,null,null,null,null,"000002533","URPAY",2533,"3","08","12","07","11","01","12","FED","0112",null,"08","0112-URPAY"]
[null,null,null,null,null,null,null,null,null,null,null,null,null,null,null,null,null,null,null,"000002540","URUBAMBA",2540,"2","08","13","01","11","02","07","","0207",null,"308","0207-URUBAMBA"]
[null,null,null,null,null,null,null,null,null,null,null,null,null,null,null,null,null,null,null,"000002382","UZCUPATA",2382,"3","08","06","01","11","04","05","","0405",null,"308","0405-UZCUPATA"]
[null,null,null,null,null,null,null,null,null,null,null,null,null,null,null,null,null,null,null,"000002409","VELILLE",2409,"2","08","07","08","11","08","01","FED","0801",null,"308","0801-VELILLE"]
[null,null,null,null,null,null,null,null,null,null,null,null,null,null,null,null,null,null,null,"000002464","VERSALLES",2464,"3","08","09","05","11","02","08","","0208",null,"308","0208-VERSALLES"]
[null,null,null,null,null,null,null,null,null,null,null,null,null,null,null,null,null,null,null,"000002488","VILLA QUINTIARINA",2488,"3","08","09","13","11","05","01","","0501",null,"08","0501-VILLA QUINTIARINA"]
[null,null,null,null,null,null,null,null,null,null,null,null,null,null,null,null,null,null,null,"000002479","VILLA VIRGEN",2479,"3","08","09","12","11","05","01","","0501",null,"308","0501-VILLA VIRGEN"]
[null,null,null,null,null,null,null,null,null,null,null,null,null,null,null,null,null,null,null,"000002518","VIZCOCHONI",2518,"3","08","11","04","11","01","06","FED","0106",null,"308","0106-VIZCOCHONI"]
[null,null,null,null,null,null,null,null,null,null,null,null,null,null,null,null,null,null,null,"000002315","WANCHAQ",2315,"2","08","01","08","11","02","02","","0202",null,"308","0202-WANCHAQ"]
[null,null,null,null,null,null,null,null,null,null,null,null,null,null,null,null,null,null,null,"000002541","YANAHUARA",2541,"3","08","13","01","11","02","07","","0207",null,"308","0207-YANAHUARA"]
[null,null,null,null,null,null,null,null,null,null,null,null,null,null,null,null,null,null,null,"000002364","YANAOCA",2364,"2","08","05","01","11","04","01","FED","0401",null,"308","0401-YANAOCA"]
[null,null,null,null,null,null,null,null,null,null,null,null,null,null,null,null,null,null,null,"000012932","YANQUE",12932,"3","08","07","04","11","08","01","FED","0801",null,"308","0801-YANQUE"]
[null,null,null,null,null,null,null,null,null,null,null,null,null,null,null,null,null,null,null,"000002410","YAURI",2410,"2","08","08","01","11","04","06","","0406",null,"308","0406-YAURI"]
[null,null,null,null,null,null,null,null,null,null,null,null,null,null,null,null,null,null,null,"000002509","YAURISQUE",2509,"2","08","10","09","11","01","03","FED","0103",null,"308","0103-YAURISQUE"]
[null,null,null,null,null,null,null,null,null,null,null,null,null,null,null,null,null,null,null,"000007111","YAVINA",7111,"3","08","07","01","11","08","01","FED","0801",null,"308","0801-YAVINA"]
[null,null,null,null,null,null,null,null,null,null,null,null,null,null,null,null,null,null,null,"000007112","YORENCCA",7112,"3","08","07","07","11","08","01","FED","0801",null,"308","0801-YORENCCA"]
[null,null,null,null,null,null,null,null,null,null,null,null,null,null,null,null,null,null,null,"000002551","YUCAY",2551,"3","08","13","07","11","02","07","","0207",null,"308","0207-YUCAY"]
[null,null,null,null,null,null,null,null,null,null,null,null,null,null,null,null,null,null,null,"000002489","YUVENI",2489,"3","08","09","09","11","03","04","","0304",null,"208","0304-YUVENI"]
[null,null,null,null,null,null,null,null,null,null,null,null,null,null,null,null,null,null,null,"000002308","ZARZUELA ALTA",2308,"2","08","01","06","11","02","01","","0201",null,"208","0201-ZARZUELA ALTA"]
[null,null,null,null,null,null,null,null,null,null,null,null,null,null,null,null,null,null,null,"000002340","ZURITE",2340,"3","08","03","09","11","02","03","","0203",null,"208","0203-ZURITE"]
[null,null,null,null,null,null,null,null,null,null,null,null,null,null,null,null,null,null,null,null,"(ALL)",null,null,null,null,null,null,null,null,null,"0101",null,null,"0101-(ALL)"]
[null,null,null,null,null,null,null,null,null,null,null,null,null,null,null,null,null,null,null,null,"(ALL)",null,null,null,null,null,null,null,null,null,"0102",null,null,"0102-(ALL)"]
[null,null,null,null,null,null,null,null,null,null,null,null,null,null,null,null,null,null,null,null,"(ALL)",null,null,null,null,null,null,null,null,null,"0103",null,null,"0103-(ALL)"]
[null,null,null,null,null,null,null,null,null,null,null,null,null,null,null,null,null,null,null,null,"(ALL)",null,null,null,null,null,null,null,null,null,"0104",null,null,"0104-(ALL)"]
[null,null,null,null,null,null,null,null,null,null,null,null,null,null,null,null,null,null,null,null,"(ALL)",null,null,null,null,null,null,null,null,null,"0105",null,null,"0105-(ALL)"]
[null,null,null,null,null,null,null,null,null,null,null,null,null,null,null,null,null,null,null,null,"(ALL)",null,null,null,null,null,null,null,null,null,"0106",null,null,"0106-(ALL)"]
[null,null,null,null,null,null,null,null,null,null,null,null,null,null,null,null,null,null,null,null,"(ALL)",null,null,null,null,null,null,null,null,null,"0107",null,null,"0107-(ALL)"]
[null,null,null,null,null,null,null,null,null,null,null,null,null,null,null,null,null,null,null,null,"(ALL)",null,null,null,null,null,null,null,null,null,"0108",null,null,"0108-(ALL)"]
[null,null,null,null,null,null,null,null,null,null,null,null,null,null,null,null,null,null,null,null,"(ALL)",null,null,null,null,null,null,null,null,null,"0109",null,null,"0109-(ALL)"]
[null,null,null,null,null,null,null,null,null,null,null,null,null,null,null,null,null,null,null,null,"(ALL)",null,null,null,null,null,null,null,null,null,"0110",null,null,"0110-(ALL)"]
[null,null,null,null,null,null,null,null,null,null,null,null,null,null,null,null,null,null,null,null,"(ALL)",null,null,null,null,null,null,null,null,null,"0111",null,null,"0111-(ALL)"]
[null,null,null,null,null,null,null,null,null,null,null,null,null,null,null,null,null,null,null,null,"(ALL)",null,null,null,null,null,null,null,null,null,"0112",null,null,"0112-(ALL)"]
[null,null,null,null,null,null,null,null,null,null,null,null,null,null,null,null,null,null,null,null,"(ALL)",null,null,null,null,null,null,null,null,null,"0113",null,null,"0113-(ALL)"]
[null,null,null,null,null,null,null,null,null,null,null,null,null,null,null,null,null,null,null,null,"(ALL)",null,null,null,null,null,null,null,null,null,"0114",null,null,"0114-(ALL)"]
[null,null,null,null,null,null,null,null,null,null,null,null,null,null,null,null,null,null,null,null,"(ALL)",null,null,null,null,null,null,null,null,null,"0115",null,null,"0115-(ALL)"]
[null,null,null,null,null,null,null,null,null,null,null,null,null,null,null,null,null,null,null,null,"(ALL)",null,null,null,null,null,null,null,null,null,"0201",null,null,"0201-(ALL)"]
[null,null,null,null,null,null,null,null,null,null,null,null,null,null,null,null,null,null,null,null,"(ALL)",null,null,null,null,null,null,null,null,null,"0202",null,null,"0202-(ALL)"]
[null,null,null,null,null,null,null,null,null,null,null,null,null,null,null,null,null,null,null,null,"(ALL)",null,null,null,null,null,null,null,null,null,"0203",null,null,"0203-(ALL)"]
[null,null,null,null,null,null,null,null,null,null,null,null,null,null,null,null,null,null,null,null,"(ALL)",null,null,null,null,null,null,null,null,null,"0204",null,null,"0204-(ALL)"]
[null,null,null,null,null,null,null,null,null,null,null,null,null,null,null,null,null,null,null,null,"(ALL)",null,null,null,null,null,null,null,null,null,"0205",null,null,"0205-(ALL)"]
[null,null,null,null,null,null,null,null,null,null,null,null,null,null,null,null,null,null,null,null,"(ALL)",null,null,null,null,null,null,null,null,null,"0206",null,null,"0206-(ALL)"]
[null,null,null,null,null,null,null,null,null,null,null,null,null,null,null,null,null,null,null,null,"(ALL)",null,null,null,null,null,null,null,null,null,"0207",null,null,"0207-(ALL)"]
[null,null,null,null,null,null,null,null,null,null,null,null,null,null,null,null,null,null,null,null,"(ALL)",null,null,null,null,null,null,null,null,null,"0208",null,null,"0208-(ALL)"]
[null,null,null,null,null,null,null,null,null,null,null,null,null,null,null,null,null,null,null,null,"(ALL)",null,null,null,null,null,null,null,null,null,"0209",null,null,"0209-(ALL)"]
[null,null,null,null,null,null,null,null,null,null,null,null,null,null,null,null,null,null,null,null,"(ALL)",null,null,null,null,null,null,null,null,null,"0301",null,null,"0301-(ALL)"]
[null,null,null,null,null,null,null,null,null,null,null,null,null,null,null,null,null,null,null,null,"(ALL)",null,null,null,null,null,null,null,null,null,"0302",null,null,"0302-(ALL)"]
[null,null,null,null,null,null,null,null,null,null,null,null,null,null,null,null,null,null,null,null,"(ALL)",null,null,null,null,null,null,null,null,null,"0303",null,null,"0303-(ALL)"]
[null,null,null,null,null,null,null,null,null,null,null,null,null,null,null,null,null,null,null,null,"(ALL)",null,null,null,null,null,null,null,null,null,"0304",null,null,"0304-(ALL)"]
[null,null,null,null,null,null,null,null,null,null,null,null,null,null,null,null,null,null,null,null,"(ALL)",null,null,null,null,null,null,null,null,null,"0305",null,null,"0305-(ALL)"]
[null,null,null,null,null,null,null,null,null,null,null,null,null,null,null,null,null,null,null,null,"(ALL)",null,null,null,null,null,null,null,null,null,"0306",null,null,"0306-(ALL)"]
[null,null,null,null,null,null,null,null,null,null,null,null,null,null,null,null,null,null,null,null,"(ALL)",null,null,null,null,null,null,null,null,null,"0401",null,null,"0401-(ALL)"]
[null,null,null,null,null,null,null,null,null,null,null,null,null,null,null,null,null,null,null,null,"(ALL)",null,null,null,null,null,null,null,null,null,"0402",null,null,"0402-(ALL)"]
[null,null,null,null,null,null,null,null,null,null,null,null,null,null,null,null,null,null,null,null,"(ALL)",null,null,null,null,null,null,null,null,null,"0403",null,null,"0403-(ALL)"]
[null,null,null,null,null,null,null,null,null,null,null,null,null,null,null,null,null,null,null,null,"(ALL)",null,null,null,null,null,null,null,null,null,"0404",null,null,"0404-(ALL)"]
[null,null,null,null,null,null,null,null,null,null,null,null,null,null,null,null,null,null,null,null,"(ALL)",null,null,null,null,null,null,null,null,null,"0405",null,null,"0405-(ALL)"]
[null,null,null,null,null,null,null,null,null,null,null,null,null,null,null,null,null,null,null,null,"(ALL)",null,null,null,null,null,null,null,null,null,"0406",null,null,"0406-(ALL)"]
[null,null,null,null,null,null,null,null,null,null,null,null,null,null,null,null,null,null,null,null,"(ALL)",null,null,null,null,null,null,null,null,null,"0501",null,null,"0501-(ALL)"]
[null,null,null,null,null,null,null,null,null,null,null,null,null,null,null,null,null,null,null,null,"(ALL)",null,null,null,null,null,null,null,null,null,"0502",null,null,"0502-(ALL)"]

{"sheet":"INICIO","index":1,"n_rows":61,"n_cols":22,"rows_kept":61,"cut":false,"hidden":false,"merged":[]}
[]
[]
[]
[]
[]
[]
[]
[]
[]
[]
[]
[]
[null,null,1,null,3]
[]
[]
[]
[]
[]
[]
[]
[]
[]
[]
[]
[]
[]
[]
[null,"año","2024"]
[null,"meses",1,2,3,4,5,6,7,8,9,10,11,0]
[null,null,{"$f":"IF(C29>=1,C29,\" \")","v":1},{"$f":"IF(D29>=1,D29,\" \")","v":2},{"$f":"IF(E29>=1,E29,\" \")","v":3},{"$f":"IF(F29>=1,F29,\" \")","v":4},{"$f":"IF(G29>=1,G29,\" \")","v":5},{"$f":"IF(H29>=1,H29,\" \")","v":6},7,8,9,10,11," "]
[null,"redes","03-LA CONVENCION",null,{"$f":"TRIM(MID(C31,4,25))","v":"LA CONVENCION"}]
[null,"micro red","06-(ALL)",null,{"$f":"TRIM(MID(C32,4,25))","v":"(ALL)"}]
[null,"establecimiento  ","0000-(ALL)",null,{"$f":"TRIM(MID(C33,6,50))","v":"(ALL)"}]
[null,"provincia ","00-(ALL)",null,{"$f":"TRIM(MID(C34,4,25))","v":"(ALL)"}]
[null,"distrito","0000-(ALL)",null,{"$f":"TRIM(MID(C35,6,25))","v":"(ALL)"}]
[]
[]
[]
[]
[]
["ANO","(Todas)"]
["DESC_RED","(Todas)"]
["DESC_MICRO","(Todas)"]
["DESC_ESTAB","(Todas)"]
["DESC_PROV","(Todas)"]
["DESC_DIST","(Todas)"]
[]
[null,"Valores"]
["Etiquetas de fila"," NEONATO  AFEC  TRAUM OBST"," Neonato afectado por condiciones maternas"," Oftalmia del Recién Nacido"," Recién nacido expuesto al VIH"," Sífilis congénita"," Onfalitis"," Sepsis neonatal"," Hipoglicemia"," Hipocalcemia"," Hipomagnecemia"," Ictericia neonatal no fisiológica"," Asfixia del nacimiento"," Dificultad respiratoria del recién nacido"," Convulsiones Neonatales"," Incompatibilidad Rh/ABO en el Recién Nacido"," Hidrocefalia Congénita"," Paladar Hendido (Fisura Labio Palatino)"," Displasia Congénita de Cadera"," Hipoxia"," prematuro"," Bajo peso al nacer"]
[1,1,16,0,0,0,1,0,1,0,0,0,0,0,0,0,0,0,1,0,12,28]
[2,1,15,0,0,0,0,0,0,0,0,0,0,0,0,0,0,0,1,0,7,22]
[3,1,16,0,0,0,0,1,0,0,0,0,0,0,0,0,0,0,2,0,9,25]
[4,0,19,0,0,1,0,0,0,0,0,0,0,0,0,0,0,0,1,0,13,32]
[5,0,16,0,0,0,0,1,0,0,0,0,0,0,0,1,0,1,1,0,10,26]
[6,1,6,0,1,0,0,0,0,0,0,0,0,0,0,0,0,1,2,0,14,20]
[7,1,16,0,0,0,1,0,0,0,0,0,0,0,0,0,0,0,1,0,12,29]
[8,1,8,0,0,0,0,1,0,0,0,0,0,0,0,0,0,0,1,0,9,17]
[9,0,16,0,0,0,1,0,0,0,0,0,0,0,0,0,0,0,1,0,14,31]
[10,1,20,0,0,0,0,0,0,0,0,0,0,0,0,0,0,2,1,0,14,34]
[11,0,24,0,0,0,0,0,0,0,0,0,0,0,0,0,0,1,1,0,18,42]
["Total general",7,172,0,1,1,3,3,1,0,0,0,0,0,0,1,0,5,13,0,132,306]

{"sheet":"NEONATO_2012","index":2,"n_rows":56,"n_cols":12,"rows_kept":56,"cut":false,"hidden":false,"merged":[[33,7,33,9],[33,1,33,3],[28,0,28,2],[10,2,10,4],[10,7,10,8],[7,2,7,4],[7,6,7,8],[0,0,0,11],[1,0,1,11],[2,0,2,11],[29,10,29,11],[31,1,31,3],[31,7,31,9],[32,1,32,3],[32,7,32,9],[34,1,34,3],[34,7,34,9],[35,1,35,3],[35,7,35,9],[36,7,36,9],[37,1,37,3],[37,7,37,9],[38,1,38,3],[38,7,38,9],[36,1,36,3],[39,7,39,9],[40,1,40,3],[40,7,40,9],[41,1,41,3],[41,7,41,9],[39,1,39,3],[42,7,42,9],[43,1,43,3],[43,7,43,9],[44,1,44,3],[45,1,45,3],[45,9,45,11],[42,1,42,3],[46,9,46,11],[47,1,47,3],[47,9,47,11],[48,1,48,3],[48,9,48,11],[46,1,46,3],[49,1,49,3],[49,9,49,11],[50,1,50,3],[50,9,50,11],[51,1,51,3],[51,9,51,11],[55,9,55,11],[52,1,52,3],[52,9,52,11],[53,1,53,3],[53,9,53,11],[54,1,54,3],[55,1,55,3]]}
["DIRECCION REGIONAL DE SALUD CUSCO"]
["DIRECCION DE ESTADISTICA E INFORMATICA Y TELECOMUNICACION"]
["INFORME  MENSUAL  NEONATO  "]
[]
[]
[]
["RED DE SALUD ",null,"MICRO  RED",null,null,null,"PROVINCIA"]
[{"$f":"MID(INICIO!E31,1,50)","v":"LA CONVENCION"},null,{"$f":"MID(INICIO!E32,1,50)","v":"(ALL)"},null,null,null,{"$f":"MID(INICIO!E34,1,50)","v":"(ALL)"}]
[]
["ESTABLECIMIENTO",null,"DISTRITO"]
[{"$f":"MID(INICIO!E33,1,50)","v":"(ALL)"},null,{"$f":"MID(INICIO!E35,1,50)","v":"(ALL)"},null,null,null,"AÑO",{"$f":"MID(INICIO!C28,1,50)","v":"2024"}]
[null,null,null,null,null,null,null,"."]
[null,null,null,null,null,null,"INI",null,"FIN "]
[null,null,null,null,null,"MES",{"$f":"MIN(INICIO!meses)","v":1},"A",{"$f":"VALUE(MAX(INICIO!meses))","v":11}]
[]
[]
[]
[]
[]
[]
[]
[]
[]
[]
[]
[]
[]
[]
[]
[]
[]
[null," MORBILIDAD DE RECIÉN NACIDO",null,null,"ATD ","ACUM",null,"RECIEN NACIDO UCIN ",null,null,"ATD","ACUM"]
[null,"Neonato afectado por el Parto (Trauma Obstetrico)",null,null,{"$f":"SUM(GETPIVOTDATA(\" NEONATO  AFEC  TRAUM OBST\",INICIO!$A$48))","v":7},null,null,"Neonato afectado por el Parto (Trauma Obstetrico)"]
[null,"Neonato afectado por  condiciones maternas (HTA, infecciones, DM, RPM)",null,null,{"$f":"SUM(GETPIVOTDATA(\" Neonato afectado por condiciones maternas\",INICIO!$A$48))","v":172},null,null,"Neonato afectado por  condiciones maternas \n(HTA, infecciones, DM, RPM)"]
[null,"Bajo peso al nacer  y Prematuro",null,null,{"$f":"SUM(GETPIVOTDATA(\" prematuro\",INICIO!$A$48)+GETPIVOTDATA(\" Bajo peso al nacer\",INICIO!$A$48))","v":438},null,null,"Bajo peso al nacer  y Prematuro"]
[null,"Oftalmia del Recien Nacido ",null,null,{"$f":"SUM(GETPIVOTDATA(\" Oftalmia del Recién Nacido\",INICIO!$A$48))","v":0},null,null,"Sepsis Neonatal (P36)"]
[null,"recien Nacido expuesto al VIH",null,null,{"$f":"SUM(GETPIVOTDATA(\" Recién nacido expuesto al VIH\",INICIO!$A$48))","v":1},null,null,"Hipoglicemia (P703 - P704)"]
[null,"Sifilis congenita",null,null,{"$f":"SUM(GETPIVOTDATA(\" Sífilis congénita\",INICIO!$A$48))","v":1},null,null,"Hipocalcemia"]
[null,"Onfalitis ",null,null,{"$f":"SUM(GETPIVOTDATA(\" Onfalitis\",INICIO!$A$48))","v":3},null,null,"Hipomagnesemia neonatal "]
[null,"Sepsis Neonatal (P36)",null,null,{"$f":"SUM(GETPIVOTDATA(\" Sepsis neonatal\",INICIO!$A$48))","v":3},null,null,"Asfixia  de Nacimiento"]
[null,"Hipoglicemia (P703 - P704)",null,null,{"$f":"SUM(GETPIVOTDATA(\" Hipoglicemia\",INICIO!$A$48))","v":1},null,null,"Dificultad respiratoria de Recien Nacido"]
[null,"Hipocalcemia",null,null,{"$f":"SUM(GETPIVOTDATA(\" Hipocalcemia\",INICIO!$A$48))","v":0},null,null,"Convulsiones neonatales "]
[null,"Hipomagnesemia neonatal ",null,null,{"$f":"SUM(GETPIVOTDATA(\" Hipomagnecemia\",INICIO!$A$48))","v":0},null,null,"Incopatiobilidad Rh/ABO en el RN"]
[null," Ictericia neonatal no Fisiologica",null,null,{"$f":"SUM(GETPIVOTDATA(\" Ictericia neonatal no fisiológica\",INICIO!$A$48))","v":0},null,null,"Total Atención de RN. Complicado "]
[null,"Asfixia  de Nacimiento",null,null,{"$f":"SUM(GETPIVOTDATA(\" Asfixia del nacimiento\",INICIO!$A$48))","v":0}]
[null,"Dificultad Respiratoria de Recien Nacido",null,null,{"$f":"SUM(GETPIVOTDATA(\" Dificultad respiratoria del recién nacido\",INICIO!$A$48))","v":0}]
[null,"Convulsiones neonatales ",null,null,{"$f":"SUM(GETPIVOTDATA(\" Convulsiones Neonatales\",INICIO!$A$48))","v":0}]
[null,"Hipotiroidismo congénito (E03 -E009)",null,null,{"$f":"SUM(GETPIVOTDATA(\" Hipotiroidismo Congénito\",INICIO!$A$48))","v":{"$error":"#REF!"}}]
[null,"Incopatiobilidad Rh/ABO en el RN",null,null,{"$f":"SUM(GETPIVOTDATA(\" Incompatibilidad Rh/ABO en el Recién Nacido\",INICIO!$A$48))","v":1}]
[null,"Hidrocefalia congenita",null,null,{"$f":"SUM(GETPIVOTDATA(\" Hidrocefalia Congénita\",INICIO!$A$48))","v":0}]
[null,"Paladar hendido (fisura labio palatino)",null,null,{"$f":"SUM(GETPIVOTDATA(\" Paladar Hendido (Fisura Labio Palatino)\",INICIO!$A$48))","v":5}]
[null,"Displasia congenita de cadera",null,null,{"$f":"SUM(GETPIVOTDATA(\" Displasia Congénita de Cadera\",INICIO!$A$48))","v":13}]
[null,"Hipoxia (P21)",null,null,{"$f":"SUM(GETPIVOTDATA(\" Hipoxia\",INICIO!$A$48))","v":0}]
[null,"Malformación Congénita"]
[null,"Retinopatia de la prematuridad "]
[null,"Total Atención de RN. Complicado ",null,null,{"$f":"SUM(E33:E55)","v":{"$error":"#REF!"}}]

{"sheet":"Hoja1","index":3,"n_rows":21,"n_cols":21,"rows_kept":21,"cut":false,"hidden":false,"merged":[]}
[]
["ANO",2024]
["DESC_RED","(Todas)"]
["DESC_MICRO","(Todas)"]
["DESC_ESTAB","(Todas)"]
["DESC_PROV","(Todas)"]
["DESC_DIST","(Todas)"]
[]
[null,"Valores"]
["Etiquetas de fila"," NEONATO  AFEC  TRAUM OBST"," Oftalmia del Recién Nacido"," Recién nacido expuesto al VIH"," Sífilis congénita"," Onfalitis"," Sepsis neonatal"," Hipoglicemia"," Hipocalcemia"," Hipomagnecemia"," Ictericia neonatal no fisiológica"," Asfixia del nacimiento"," Dificultad respiratoria del recién nacido"," Convulsiones Neonatales"," Incompatibilidad Rh/ABO en el Recién Nacido"," Hidrocefalia Congénita"," Paladar Hendido (Fisura Labio Palatino)"," Displasia Congénita de Cadera"," Hipoxia"," prematuro"," Bajo peso al nacer"]
[1,1,0,0,0,1,0,1,0,0,0,0,0,0,0,0,0,1,0,12,28]
[2,1,0,0,0,0,0,0,0,0,0,0,0,0,0,0,0,1,0,7,22]
[3,1,0,0,0,0,1,0,0,0,0,0,0,0,0,0,0,2,0,9,25]
[4,0,0,0,1,0,0,0,0,0,0,0,0,0,0,0,0,1,0,13,32]
[5,0,0,0,0,0,1,0,0,0,0,0,0,0,1,0,1,1,0,10,26]
[6,1,0,1,0,0,0,0,0,0,0,0,0,0,0,0,1,2,0,14,20]
[7,1,0,0,0,1,0,0,0,0,0,0,0,0,0,0,0,1,0,12,29]
[8,1,0,0,0,0,1,0,0,0,0,0,0,0,0,0,0,1,0,9,17]
[9,0,0,0,0,1,0,0,0,0,0,0,0,0,0,0,0,1,0,14,31]
[10,1,0,0,0,0,0,0,0,0,0,0,0,0,0,0,2,1,0,14,34]
["Total general",7,0,1,1,3,3,1,0,0,0,0,0,0,1,0,4,12,0,114,264]